Cogmind - Beta 16.1 @@@ ROGUE MODE // 2026.02.25 @ 09:36:23 Player: AlmondRoll Result: Destroyed by P-80 Master with Gamma Rifle Performance ------------- Evolutions (8) 4000 Regions Visited (29) 5800 Robots Destroyed (158) 790 Value Destroyed (5954) 5954 Prototype IDs (164) 3280 Alien Tech Used (5) 1000 Bonus (10603) 10603 TOTAL SCORE: 31427 Bonus ------- High Alert Combat Kills 663 Follower Combat Kills 1073 Hunted by Unchained 1500 Network Hubs Disabled 800 Registered with UFD 300 Met Optimus in HQ 500 Met Zhirov 300 Met Warlord at Base 500 MAIN.C Attacked Warlord 500 Met R17 at Cetus 500 Found Hidden Lab 3000 Met Optimus at Protoforge 1000 Friendly Fire -33 Cogmind --------- Core Integrity 0/1450 Matter 295/300 Energy 100/100 System Corruption 12% Temperature Cool (0) Movement Hovering (80) Location -2/Protoforge Parts ------- > --- POWER (2) -------- (None) > --- PROPULSION (7) --- Backup Propulsion III Xenon Bombardment Thruster > --- UTILITY (12) ----- 0bPrime Scrap Suit Experimental Melee Analysis Suite Experimental Target Analyzer Experimental Core Analyzer Experimental Armor Integrity Analyzer Experimental Reaction Control System > --- WEAPON (2) ------- Plasma Lance > --- INVENTORY (5) ---- (None) Peak State ------------ > --- POWER ------------ Light Neutrino Core Mini Fusion Reactor > --- PROPULSION ------- Diametric Drive Improved Diametric Drive Improved Diametric Drive Impulse Thruster Array Cooled Q-thruster Cooled Q-thruster > --- UTILITY ---------- Experimental Cooling System Medium Storage Unit Experimental Melee Analysis Suite Experimental Target Analyzer Experimental Core Analyzer Experimental Core Analyzer Experimental Armor Integrity Analyzer Nanoactuators Nanoactuators Experimental Reaction Control System Centrium Medium Armor Plating Graphene Brace > --- WEAPON ----------- Vortex Lance Vortex Lance > --- INVENTORY -------- UFD Drillbomb [Rating: 203] Favorites ----------- Power Mini Fusion Reactor Engine Subdweller Power Source Power Core Fission Core Reactor Mini Fusion Reactor Propulsion Biomechanical Wings Treads Light Treads Leg Aluminum Leg Wheel Subdweller Monowheel Hover Unit Backup Propulsion III Flight Unit Biomechanical Wings Utility Medium Storage Unit Device Advanced Sensor Array Storage Medium Storage Unit Processor Advanced Signal Interpreter Hackware Advanced Hacking Suite Protection Medium Regenerative Plating Weapon Advanced Datajack Energy Gun Subdweller Laser Energy Cannon Subdweller Beam Cannon Ballistic Gun Subdweller Machine Gun Ballistic Cannon Battle Cannon Launcher Compact Tesla Bomb Launcher Special Weapon Mining Laser Impact Weapon Gravity Flail Slashing Weapon Power Sword Piercing Weapon Plasma Lance Special Melee Weapon Advanced Datajack Build | -11 -10 -10 -9 -9 -6 -6 -6 -6 -6 -6 -6 -5 -5 -5 -5 -5 -5 -4 -4 -4 -4 -4 -3 -3 -3 -3 -2 -2 -2 ------- Run | Yrd Mat Sub Rec Scr Fac Was Fac Ext Cet Arc Hub Fac Was Fac Upp Upp Zhi Pro Fac Upp Upp War Pro Res Arm Lab Res Tes Frg Slots Evolved 16 | . . . . . 8 . . . . . . 2 . . . . . . 2 . . . . 2 . . 2 . . Power 1 | . . . . . . . . . . . . 1 . . . . . . . . . . . . . . . . . Propulsion 5 | . . . . . 4 . . . . . . . . . . . . . . . . . . . . . 1 . . Utility 10 | . . . . . 4 . . . . . . 1 . . . . . . 2 . . . . 2 . . 1 . . Weapon . | . . . . . . . . . . . . . . . . . . . . . . . . . . . . . . Parts Attached 238 | 4 8 24 . 6 26 . 8 5 3 1 4 27 . 3 2 1 2 . 18 . . 13 . 3 3 2 8 20 47 Power 23 | . 2 5 . 1 3 . 2 . . . . . . . . . 1 . . . . 1 . . 1 . 2 . 5 Engine 7 | . 1 5 . . 1 . . . . . . . . . . . . . . . . . . . . . . . . Core 6 | . 1 . . 1 1 . . . . . . . . . . . . . . . . . . . 1 . 2 . . Reactor 10 | . . . . . 1 . 2 . . . . . . . . . 1 . . . . 1 . . . . . . 5 Propulsion 50 | 3 . 6 . 1 3 . . . . . . 2 . . . . . . 6 . . 3 . 1 . . 1 8 16 Treads 7 | 2 . 5 . . . . . . . . . . . . . . . . . . . . . . . . . . . Leg 1 | . . . . . . . . . . . . . . . . . . . . . . 1 . . . . . . . Wheel 3 | 1 . 1 . 1 . . . . . . . . . . . . . . . . . . . . . . . . . Hover 1 | . . . . . . . . . . . . . . . . . . . . . . 1 . . . . . . . Flight 38 | . . . . . 3 . . . . . . 2 . . . . . . 6 . . 1 . 1 . . 1 8 16 Utility 109 | . 3 2 . 2 15 . 5 3 2 . 4 18 . 2 1 1 1 . 10 . . 6 . 1 . . 5 6 22 Device 64 | . 2 . . . 9 . 3 1 . . 1 15 . 2 . 1 . . 6 . . 4 . . . . 3 3 14 Storage 6 | . 1 . . 1 1 . . . 1 . . . . . . . . . 1 . . . . . . . . 1 . Processor 17 | . . . . 1 4 . . . . . 1 2 . . . . . . 1 . . 1 . . . . 1 1 5 Hackware 9 | . . . . . . . 2 1 . . 2 1 . . . . . . 1 . . . . 1 . . 1 . . Protection 13 | . . 2 . . 1 . . 1 1 . . . . . 1 . 1 . 1 . . 1 . . . . . 1 3 Artifact . | . . . . . . . . . . . . . . . . . . . . . . . . . . . . . . Weapon 56 | 1 3 11 . 2 5 . 1 2 1 1 . 7 . 1 1 . . . 2 . . 3 . 1 2 2 . 6 4 Energy Gun 4 | . . 3 . . . . . . . . . . . . . . . . . . . . . . . . . 1 . Energy Cannon 13 | . . 2 . . 1 . 1 . . . . 2 . 1 . . . . 1 . . 1 . . . 1 . 2 1 Ballistic Gun 6 | 1 1 3 . . . . . . . . . . . . . . . . . . . 1 . . . . . . . Ballistic Cannon 4 | . . 2 . . . . . . . . . . . . 1 . . . . . . . . . . . . 1 . Launcher 5 | . 1 . . . 1 . . . 1 . . . . . . . . . . . . . . . 1 . . 1 . Special Weapon 4 | . 1 1 . . . . . 1 . . . . . . . . . . . . . . . . . 1 . . . Impact Weapon 1 | . . . . . . . . . . . . 1 . . . . . . . . . . . . . . . . . Slashing Weapon 4 | . . . . 1 1 . . 1 . . . 1 . . . . . . . . . . . . . . . . . Piercing Weapon 8 | . . . . . . . . . . . . 2 . . . . . . . . . 1 . . 1 . . 1 3 Special Melee Weapon 7 | . . . . 1 2 . . . . 1 . 1 . . . . . . 1 . . . . 1 . . . . . Unidentified Prototypes 53 | . . . . . 2 . 1 . 1 . 1 7 . 1 1 . 3 . 2 1 . 11 . 1 3 4 1 9 4 Corrupted Parts 1 | . . . . . . . . . . . . . . . . . . . . . . 1 . . . . . . . System Corruption 3 | . . . . . . . . . . . . . . . . . . . . . . 3 . . . . . . . Parts Lost 54 | . . 8 . . . . . . . . 3 2 . . . . . . 1 . . . . . . . 8 1 31 Power 6 | . . 1 . . . . . . . . . . . . . . . . . . . . . . . . 1 . 4 Propulsion 24 | . . 4 . . . . . . . . 1 1 . . . . . . . . . . . . . . 2 . 16 Utility 22 | . . 2 . . . . . . . . 2 1 . . . . . . 1 . . . . . . . 5 1 10 Weapon 2 | . . 1 . . . . . . . . . . . . . . . . . . . . . . . . . . 1 Highest Loss Streak 12 | . . 2 . . . . . . . . 2 1 . . . . . . 1 . . . . . . . 6 1 12 To Critical Strikes . | . . . . . . . . . . . . . . . . . . . . . . . . . . . . . . Average Backups 8 | 4 8 8 5 7 8 9 8 9 9 10 10 9 10 9 10 10 10 10 9 10 10 9 10 9 9 9 8 9 2 Power . | 1 1 . . . . 1 1 1 1 1 1 . 1 1 1 1 . . . . . . . . . 1 1 1 . Propulsion . | 2 2 2 1 1 . . . . . . . . . . . . . . . . . . . . 1 1 . . . Utility 5 | . . 2 2 5 5 6 5 6 6 7 7 7 8 7 8 8 8 8 7 8 8 7 7 5 4 4 3 2 . Weapon 1 | 1 3 2 2 . 1 1 1 1 2 2 2 1 1 1 1 1 1 1 1 1 1 1 2 2 3 3 4 4 1 Tool/Special . | . . . . . . . . . . . . . . . . . . . . . . . . . . . . . . Unused Backups 44 | . 8 9 . 2 4 . . 7 . . . 2 . 1 . . 1 . 1 1 . 2 . . 1 . . 2 3 Power 5 | . 2 1 . . 1 . . . . . . . . . . . 1 . . . . . . . . . . . . Propulsion 3 | . . 2 . . . . . . . . . . . . . . . . . . . . . . . . . . 1 Utility 22 | . 2 . . 1 3 . . 5 . . . 2 . 1 . . . . 1 1 . 2 . . 1 . . 1 2 Weapon 14 | . 4 6 . 1 . . . 2 . . . . . . . . . . . . . . . . . . . 1 . Tool/Special . | . . . . . . . . . . . . . . . . . . . . . . . . . . . . . . Average Slot Usage (%) 87 | . 97 99 100 87 73 83 83 83 82 83 78 79 80 79 79 80 78 80 83 99 100 99 100 99 99 98 92 96 83 Engine 4 | . 9 12 14 9 . . . . . . . . . . . . . . . . . . . . . . . . . Core 1 | . 4 1 . 4 1 . . . . . . . . . . . . . . . . . . . . 4 3 4 1 Reactor 4 | . . . . . 2 5 5 5 5 5 5 10 10 10 10 10 9 10 9 10 10 9 10 9 8 4 3 2 3 Treads 4 | . 28 27 14 1 . . . . . . . . . . . . . . . . . . . . . . . . . Wheel 6 | . . . 14 26 . . . . . . . . . . . . . . . . . . . . . . . . . Flight 10 | . . . . . 12 16 16 16 16 16 12 10 10 10 10 10 10 10 11 31 31 30 31 28 28 28 29 29 24 Device 14 | . 11 12 14 2 20 27 22 20 14 16 11 14 25 24 24 25 24 25 25 16 15 12 10 14 14 18 14 18 15 Storage 8 | . 14 14 14 13 5 5 5 5 6 5 5 5 5 5 5 5 5 5 4 5 5 5 5 4 4 4 4 4 4 Processor 8 | . . . . . 13 16 16 16 16 16 15 18 15 15 15 15 13 10 11 5 5 7 10 9 9 9 10 13 18 Hackware 4 | . . . . . . . 4 5 5 5 14 11 5 5 5 5 5 5 8 10 10 10 10 12 13 9 10 13 3 Protection 2 | . . 1 . . 2 . . 1 5 5 . . . . . . 1 5 1 8 10 10 10 9 9 9 5 2 3 Energy Cannon 1 | . . 14 . . . 5 5 2 . . . . . . . . . . . . . . 1 . . . . . . Ballistic Gun 4 | . 27 5 14 9 . . . . . . . . . . . . . . . . . . . . . . . . . Slashing Weapon 2 | . . . . 4 4 . . 2 3 5 5 3 . . . . . . . . . . . . . . . . . Piercing Weapon 1 | . . . . . . . . . . . . 1 5 4 4 4 5 4 4 4 5 9 8 5 4 4 4 6 6 Special Melee Weapon 5 | . . . . 13 5 5 5 4 5 5 5 5 5 5 5 5 5 5 4 5 5 . . 2 3 . . . . Peak Build Rating 203 | 6 12 15 15 21 109 108 109 115 122 118 121 144 144 144 144 144 150 148 163 125 124 137 135 146 149 150 165 186 203 Average Rating 85 | 5 9 11 15 17 92 108 108 111 115 117 115 131 144 141 143 143 142 147 153 122 119 127 130 144 143 145 145 166 159 On Entrance 108 | 6 6 12 15 15 21 108 108 109 115 114 118 108 144 144 144 144 142 148 148 124 124 119 130 130 145 147 148 129 179 Avg Prop Armor Cover (%) 6 | . . 15 15 6 . . . . . . . 26 . . . . . . . . . . . . . . . . 3 Naked Turns . | . . . . . . . . . . . . . . . . . . . . . . . . . . . . . . Heaviest Build 213 | 14 20 32 24 213 34 34 34 35 42 34 34 45 37 44 38 37 43 44 48 49 42 53 44 48 52 52 56 47 50 Greatest Support 60 | 40 40 40 20 36 36 36 36 36 36 36 36 53 39 39 39 39 55 55 55 52 52 52 52 52 52 52 60 56 57 Greatest Overweight (x) 13 | . . 1 1 13 . . . . 1 . . 1 . 2 . . . . . . . 1 . . . . . . 1 Average Overweight (x) . | . . . 1 8 . . . . . . . . . . . . . . . . . . . . . . . . . Largest Inventory Capacity 35 | 8 10 10 10 35 35 10 10 10 10 10 10 10 10 10 10 10 10 10 10 10 10 10 10 10 10 10 10 10 10 Average Capacity 14 | 8 8 10 10 30 10 10 10 10 10 10 10 10 10 10 10 10 10 10 9 10 10 10 10 10 10 10 10 10 9 Most Carried 14 | 6 10 10 9 14 10 10 10 10 10 10 10 10 10 10 10 10 10 10 10 10 10 10 10 10 10 10 10 10 10 Average Carried 9 | 4 8 9 9 11 9 10 9 9 9 9 10 9 10 9 10 10 9 10 9 9 10 9 10 9 9 9 8 9 6 Final Capacity 35 | 8 10 10 10 35 10 10 10 10 10 10 10 10 10 10 10 10 10 10 10 10 10 10 10 10 10 10 10 10 5 Final Carried 14 | 5 10 9 9 14 10 10 10 10 10 10 10 10 10 10 10 10 10 10 10 10 10 10 10 10 9 10 10 10 . Scrap Suit Usage (%) 1 | . . . . . . . . . . . . . . . . . . . . . . . . . . . . . 5 Parts Cannibalized 5 | . . . . . . . . . . . . . . . . . . . . . . . . . . . . . 5 Class Distribution -------------------- 18% | Hauler-Mutant 16% | Ninja 11% | Scavenger-Mutant 10% | Hacker-Ninja 9% | Hacker-Sprinter 9% | Mutant 5% | Hacker-Scout 3% | Commander-Ninja 3% | Scavenger-Sprinter 3% | Scavenger-Ninja 3% | Infiltrator-Ninja Dominant Class ---------------- Mutant | -10/Materials Scavenger-Mutant | -10/Subcaves Scavenger-Mutant | -9/Recycling Hauler-Mutant | -9/Scraptown Ninja | -6/Factory Ninja | -6/Waste Ninja | -6/Factory Ninja | -6/Extension Commander-Ninja | -6/Cetus Commander-Ninja | -6/Archives Hacker-Scout | -6/Hub_04(d) Hacker-Ninja | -5/Factory Ninja | -5/Waste Ninja | -5/Factory Ninja | -5/Upper Caves Ninja | -5/Upper Caves Ninja | -5/Zhirov Scavenger-Ninja | -4/Proximity Caves Hacker-Ninja | -4/Factory Hacker-Scout | -4/Upper Caves Hacker-Sprinter | -4/Upper Caves Hacker-Sprinter | -4/Warlord Hacker-Sprinter | -3/Proximity Caves Hacker-Sprinter | -3/Research Hacker-Sprinter | -3/Armory Hacker-Sprinter | -3/Lab Hacker-Sprinter | -2/Research Hacker-Ninja | -2/Testing Scavenger-Sprinter | -2/Protoforge Resources | -11 -10 -10 -9 -9 -6 -6 -6 -6 -6 -6 -6 -5 -5 -5 -5 -5 -5 -4 -4 -4 -4 -4 -3 -3 -3 -3 -2 -2 -2 ----------- Run | Yrd Mat Sub Rec Scr Fac Was Fac Ext Cet Arc Hub Fac Was Fac Upp Upp Zhi Pro Fac Upp Upp War Pro Res Arm Lab Res Tes Frg Matter Collected 5765 | 205 376 949 . 70 323 . 145 92 230 10 35 672 . 154 117 50 110 60 395 82 . 298 60 70 . . 312 286 664 Remotely . | . . . . . . . . . . . . . . . . . . . . . . . . . . . . . . Salvage Created 9057 | 16 558 716 . . 649 . 256 406 664 314 295 646 . 386 21 170 419 15 619 76 . . . 211 33 . 496 972 1119 Parts 371 | 3 38 41 . . 24 . 8 9 30 28 12 34 . 12 1 3 4 . 26 4 . . . 7 2 . 22 26 37 Haulers Intercepted 14 | . 2 . . . 2 . 1 1 . . 1 . . 2 . . . . 3 . . . . 1 . . . 1 . Recyclers Shooed 8 | 1 1 . . . . . 1 4 . . . . . . . . . . 1 . . . . . . . . . . Parts Field Recycled . | . . . . . . . . . . . . . . . . . . . . . . . . . . . . . . Retrieved Matter . | . . . . . . . . . . . . . . . . . . . . . . . . . . . . . . Parts Self-Destructed 27 | . . 18 . . . . . . . . . . . . 1 3 2 . . 3 . . . . . . . . . Prevented . | . . . . . . . . . . . . . . . . . . . . . . . . . . . . . . Parts Restored . | . . . . . . . . . . . . . . . . . . . . . . . . . . . . . . Kills | -11 -10 -10 -9 -9 -6 -6 -6 -6 -6 -6 -6 -5 -5 -5 -5 -5 -5 -4 -4 -4 -4 -4 -3 -3 -3 -3 -2 -2 -2 ------- Run | Yrd Mat Sub Rec Scr Fac Was Fac Ext Cet Arc Hub Fac Was Fac Upp Upp Zhi Pro Fac Upp Upp War Pro Res Arm Lab Res Tes Frg Combat Hostiles Destroyed 69 | . 11 21 . . . . . . 8 . . . . . . . . 2 . . . . . . . . 3 2 22 Melee 26 | . . . . . . . . . . . . . . . . . . 2 . . . . . . . . . 2 22 Guns 16 | . 9 7 . . . . . . . . . . . . . . . . . . . . . . . . . . . Cannons 13 | . . 11 . . . . . . 2 . . . . . . . . . . . . . . . . . . . . AOE 9 | . 2 2 . . . . . . 2 . . . . . . . . . . . . . . . . . 3 . . Classes Destroyed 21 | 1 8 3 . . 1 . . . . . . . . . 1 . . 1 . . . . . . . . 1 1 4 Worker 5 | . 2 . . . . . . . . . 1 2 . . . . . . . . . . . . . . . . . Builder 6 | . 1 . . . . . . . . . . 4 . 1 . . . . . . . . . . . . . . . Tunneler 5 | 1 . . . . . . . . . . . 4 . . . . . . . . . . . . . . . . . Hauler 14 | . 2 . . . 2 . 1 1 . . 1 . . 2 . . . . 3 . . . . 1 . . . 1 . Recycler 19 | . 1 . . . 3 . 1 2 . . 1 2 . 1 . . . . 1 . . . . . . . 3 4 . Minesweeper 1 | . . . . . . . . . . . . . . . 1 . . . . . . . . . . . . . . Mechanic 3 | . 1 . . . . . . . . . . 1 . . . . . . 1 . . . . . . . . . . Operator 16 | . 1 . . . 2 . . 1 . 9 1 . . . . . . . . . . . . . . . . 1 1 Drone 9 | . . . . . . . . . . . . . . . . . . 2 . . . . . . . . . . 7 Turret 1 | . . 1 . . . . . . . . . . . . . . . . . . . . . . . . . . . Watcher 18 | . . . . . 1 . 2 . 1 . . 2 . 1 . . . . 4 . . . . 3 1 . . 2 1 Swarmer 14 | . 6 5 . . . . . . . . . . . . . . . . . . . . . . . . . . 3 Cutter 3 | . . . . . . . . . . . . . . . . . . . . . . . . . . . 3 . . Grunt 7 | . 5 . . . . . . . . . . . . . . . . . . . . . . . . . . 2 . Sentry 3 | . . 1 . . . . . . . . . . . . . . . . . . . . . . . . . . 2 Programmer 2 | . . . . . . . . . . . . . . . . . . . . . . . . . . . . . 2 Cetus Guard 8 | . . . . . . . . . 8 . . . . . . . . . . . . . . . . . . . . Hotshot 2 | . . . . . . . . . . . . . . . . . . . . . . . . . . . . . 2 Overlord 1 | . . . . . . . . . . . . . . . . . . . . . . . . . . . . . 1 Striker 4 | . . . . . . . . . . . . . . . . . . . . . . . . . . . . . 4 Executioner 1 | . . . . . . . . . . . . . . . . . . . . . . . . . . . . . 1 Protovariant L 1 | . . . . . . . . . . . . . . . . . . . . . . . . . . . . 1 . Subdweller 15 | . . 15 . . . . . . . . . . . . . . . . . . . . . . . . . . . Best Kill Streak 9 | 1 7 3 . . 3 . 1 2 5 9 3 3 . 2 1 . . 1 2 . . . . 1 1 . 3 3 5 Combat Bots Only 5 | . 4 3 . . . . . . 4 . . . . . . . . 1 . . . . . . . . 3 2 5 Max Kills in Single Turn 3 | 1 3 1 . . 1 . 1 1 2 1 2 1 . 1 1 . . 1 1 . . . . 1 1 . 1 1 2 Gunslinging . | . . . . . . . . . . . . . . . . . . . . . . . . . . . . . . Exploded 2 | . 2 1 . . . . . . 2 . . . . . . . . . . . . . . . . . 1 . . Melee 2 | . . . . . . . . . . . . . . . . . . 1 . . . . . . . . . 1 2 Uniques/NPCs Destroyed . | . . . . . . . . . . . . . . . . . . . . . . . . . . . . . . Combat | -11 -10 -10 -9 -9 -6 -6 -6 -6 -6 -6 -6 -5 -5 -5 -5 -5 -5 -4 -4 -4 -4 -4 -3 -3 -3 -3 -2 -2 -2 -------- Run | Yrd Mat Sub Rec Scr Fac Was Fac Ext Cet Arc Hub Fac Was Fac Upp Upp Zhi Pro Fac Upp Upp War Pro Res Arm Lab Res Tes Frg Hostile Shots Fired 922 | . 44 140 . . 33 . 26 17 41 . 64 39 . 3 2 . . 17 . 7 8 18 . 13 13 . 85 15 337 Missed 439 | . 9 44 . . 15 . 21 13 23 . 29 13 . 3 2 . . 9 . 3 5 11 . 8 10 . 37 12 172 Hits 483 | . 35 96 . . 18 . 5 4 18 . 35 26 . . . . . 8 . 4 3 7 . 5 3 . 48 3 165 Melee 11 | . . . . . . . . . . . . . . . . . . . . . . . . . . . 5 . 6 Projectile 472 | . 35 96 . . 18 . 5 4 18 . 35 26 . . . . . 8 . 4 3 7 . 5 3 . 43 3 159 Critical Strikes 25 | . . 2 . . . . . . 3 . . 3 . . . . . . . . . 1 . . . . 6 . 10 Actively Blocked 8 | . . . . . . . . . . . . . . . . . . . . . . . . . . . 1 . 7 Part Disruptions 4 | . . . . . . . . . . . . 1 . . . . . . . 2 . . . . . . . . 1 Damage Taken 11544 | . 382 1568 . . 310 . 60 81 502 21 743 493 . 60 . . . 113 179 120 41 184 . 178 68 . 1299 61 5081 Core 1951 | . 57 165 . . 99 . . . . . 36 51 . . . . . . 34 . . 17 . 34 8 . 295 . 1155 Absorbed by Shields 67 | . . . . . . . . . . . . 28 . . . . . . . . . 26 . . . . . . 13 Redirected to Shielding 124 | . . . . . . . . . . . . . . . . . . . . . . 12 . 18 7 . 87 . . Regen/Repaired (Parts) 747 | . . . . . . . . 134 52 75 . 3 . . . . 13 3 10 . 16 249 . 57 76 . 18 . 41 Core Remaining (%) 80 | 100 . . . 11 . . . . . . 84 . . . . . . 94 . . . . 95 . . 100 . . . Volleys Fired 317 | 4 57 86 . . 11 . 67 17 18 . 1 11 . 4 1 3 . 4 8 5 . . 7 . 3 . 4 . 6 Largest 2 | 2 2 2 . . 1 . 1 1 1 . 1 1 . 1 1 1 . 1 1 1 . . 1 . 1 . 1 . 1 Hottest 160 | 40 100 160 . . 90 . 90 90 90 . 90 90 . 90 90 90 . 90 105 105 . . 110 . 110 . 49 . 120 Shots Fired 418 | 8 108 133 . . 11 . 67 17 18 . 1 11 . 4 1 3 . 4 8 5 . . 7 . 3 . 4 . 5 Gun 158 | 8 104 46 . . . . . . . . . . . . . . . . . . . . . . . . . . . Cannon 235 | . . 85 . . 11 . 67 16 4 . 1 11 . 4 1 3 . 4 8 5 . . 7 . 3 . . . 5 Launcher 22 | . 2 2 . . . . . . 14 . . . . . . . . . . . . . . . . . 4 . . Special 3 | . 2 . . . . . . 1 . . . . . . . . . . . . . . . . . . . . . Kinetic 172 | 8 104 60 . . . . . . . . . . . . . . . . . . . . . . . . . . . Thermal 223 | . 2 71 . . 11 . 67 16 4 . 1 11 . 4 1 3 . 4 8 5 . . 7 . 3 . . . 5 Explosive 4 | . 2 2 . . . . . . . . . . . . . . . . . . . . . . . . . . . Electromagnetic 18 | . . . . . . . . . 14 . . . . . . . . . . . . . . . . . 4 . . Robot Hit Streak 27 | 3 7 27 . . . . 17 2 4 . . . . . . . . . . . . . . . . . . . . Robot Miss Streak 4 | 1 4 2 . . . . 2 3 . . . . . . . . . . . . . . . . . . . . . Penetration Max . | . . . . . . . . . . . . . . . . . . . . . . . . . . . . . . Secondary Targets . | . . . . . . . . . . . . . . . . . . . . . . . . . . . . . . Shots Hit Robots 415 | 5 61 79 . 1 18 . 18 35 4 13 3 20 . 18 2 3 7 3 26 1 . 4 . 5 3 . 3 28 55 Core Hits 183 | 1 32 30 . . 6 . 6 5 21 6 5 11 . 4 . . 3 1 8 . . . . 4 1 . 8 8 23 Critical Kills 1 | . . 1 . . . . . . . . . . . . . . . . . . . . . . . . . . . Critical Parts Destroyed . | . . . . . . . . . . . . . . . . . . . . . . . . . . . . . . Critical Strikes 20 | . . 3 . . . . . . . . . . . . . 1 1 . . . . . . 1 1 . . 3 10 Meltdown 1 | . . 1 . . . . . . . . . . . . . . . . . . . . . . . . . . . Blast 2 | . . 2 . . . . . . . . . . . . . . . . . . . . . . . . . . . Impale 9 | . . . . . . . . . . . . . . . . 1 1 . . . . . . 1 1 . . 3 2 Sunder 6 | . . . . . . . . . . . . . . . . . . . . . . . . . . . . . 6 Melee Attacks 551 | . . . . 1 55 . . 44 5 14 9 86 . 47 4 7 7 14 50 4 . 15 3 27 23 4 8 40 84 Impact . | . . . . . . . . . . . . . . . . . . . . . . . . . . . . . . Slashing 167 | . . . . . 52 . . 19 5 14 7 70 . . . . . . . . . . . . . . . . . Piercing 271 | . . . . . . . . . . . . 13 . 44 4 7 7 14 41 4 . 9 2 24 23 4 8 32 35 Entropic 62 | . . . . . . . . . . . . . . . . . . . . . . 2 1 2 . . . 8 49 Sneak Attacks 132 | . . . . 1 11 . . 27 . 9 2 17 . 11 1 . . 1 14 . . 4 . 2 . . 3 20 9 Combat Hostiles 2 | . . . . . . . . . . . . . . . . . . 1 . . . . . . . . . 1 . Follow-up Attacks 9 | . . . . . . . . . . . . . . . . . . . . . . . . 1 . . . 4 4 Damage Inflicted 21755 | 61 966 1816 . . 987 . 617 500 1152 1217 317 1355 . 1050 137 307 586 170 1222 96 . . . 248 144 . 686 2886 5235 Guns 1562 | 61 828 673 . . . . . . . . . . . . . . . . . . . . . . . . . . . Cannons 2008 | . . 1048 . . . . 617 206 137 . . . . . . . . . . . . . . . . . . . . Explosions 1743 | . 124 95 . . . . . . 1015 . 172 . . . . . . . . . . . . . . . 337 . . Melee 16424 | . . . . . 987 . . 294 . 1217 141 1355 . 1050 137 307 586 170 1222 96 . . . 248 144 . 349 2886 5235 Ramming 18 | . 14 . . . . . . . . . 4 . . . . . . . . . . . . . . . . . . Kinetic 1638 | 61 828 749 . . . . . . . . . . . . . . . . . . . . . . . . . . . Thermal 2155 | . . 972 . . . . 617 206 360 . . . . . . . . . . . . . . . . . . . . Explosive 219 | . 124 95 . . . . . . . . . . . . . . . . . . . . . . . . . . . Electromagnetic 1301 | . . . . . . . . . 792 . 172 . . . . . . . . . . . . . . . 337 . . Impact . | . . . . . . . . . . . . . . . . . . . . . . . . . . . . . . Slashing 3617 | . . . . . 987 . . 294 . 1217 141 978 . . . . . . . . . . . . . . . . . Piercing 8547 | . . . . . . . . . . . . 377 . 1050 137 307 586 170 1222 96 . . . 248 144 . 349 2204 1657 Entropic 4260 | . . . . . . . . . . . . . . . . . . . . . . . . . . . . 682 3578 Highest Corruption 11 | . 1 1 1 . . 8 8 . . . 3 5 4 7 2 2 2 2 . . 2 3 3 . . . 4 4 11 Average Corruption 2 | . 1 1 1 . . 8 4 . . . 1 4 4 3 2 2 2 2 . . 2 2 3 . . . 4 4 5 Corruption Purged 19 | . . . . . . . 8 . . . . 4 . 7 . . . . . . . . . . . . . . . Corruption Blocked . | . . . . . . . . . . . . . . . . . . . . . . . . . . . . . . Effects 104 | . 1 18 1 . . 1 1 . . . 1 25 1 15 5 3 . 1 . . . 1 1 . . . . 7 22 Message Errors 26 | . . 3 . . . . . . . . 1 6 1 4 1 1 . . . . . . . . . . . 3 6 Matter Fused 31 | . 1 7 . . . . . . . . . 9 . 5 2 . . . . . . . 1 . . . . 1 5 Heat Flow Errors 12 | . . 3 . . . 1 . . . . . 2 . 1 . . . . . . . . . . . . . 2 3 Energy Discharges 13 | . . 2 1 . . . . . . . . 4 . 2 . 2 . 1 . . . . . . . . . . 1 Parts Rejected 2 | . . . . . . . . . . . . . . . . . . . . . . . . . . . . . 2 Parts Fused 1 | . . . . . . . . . . . . . . . . . . . . . . . . . . . . . 1 Data Loss (minor) 12 | . . 2 . . . . 1 . . . . 3 . 1 2 . . . . . . 1 . . . . . 1 1 Data Loss (major) 3 | . . 1 . . . . . . . . . 1 . 1 . . . . . . . . . . . . . . . Alerts 3 | . . . . . . . . . . . . . . 1 . . . . . . . . . . . . . . 2 Weapon Failures 1 | . . . . . . . . . . . . . . . . . . . . . . . . . . . . . 1 Overload Shots . | . . . . . . . . . . . . . . . . . . . . . . . . . . . . . . Overflow Damage 4015 | . . . . . 165 . 29 30 . 327 11 301 . 152 57 333 279 51 166 45 . . . . 80 . 129 1177 683 Projectiles 47 | . . . . . . . 29 18 . . . . . . . . . . . . . . . . . . . . . Explosions 6 | . . . . . . . . . . . . . . . . . . . . . . . . . . . 6 . . Melee 3962 | . . . . . 165 . . 12 . 327 11 301 . 152 57 333 279 51 166 45 . . . . 80 . 123 1177 683 Knockbacks 4 | . . 4 . . . . . . . . . . . . . . . . . . . . . . . . . . . Impact . | . . . . . . . . . . . . . . . . . . . . . . . . . . . . . . Kinetic 4 | . . 4 . . . . . . . . . . . . . . . . . . . . . . . . . . . Secondary . | . . . . . . . . . . . . . . . . . . . . . . . . . . . . . . Self-Inflicted Damage 201 | . . . . . . . . . 14 . 97 . . . . . . . . . . . . . . . 90 . . Shots 6 | . . . . . . . . . 1 . 1 . . . . . . . . . . . . . . . 4 . . Rammed 3 | . 2 . . . . . . . . . 1 . . . . . . . . . . . . . . . . . . Targets Rammed 3 | . 2 . . . . . . . . . 1 . . . . . . . . . . . . . . . . . . Kicked . | . . . . . . . . . . . . . . . . . . . . . . . . . . . . . . Crushed . | . . . . . . . . . . . . . . . . . . . . . . . . . . . . . . Highest Temperature 526 | . 20 225 . . 80 184 358 112 10 . 50 526 . 158 14 28 . 230 138 216 . 321 258 2 130 . 393 212 121 Average Temperature 77 | . 6 79 . . 29 172 108 50 4 . 17 66 . 43 10 15 . 105 61 98 . 170 107 2 59 . 187 53 44 Received Heat Transfer 1576 | . 141 381 . . 90 . 18 6 . . 45 9 . . . . . . . 12 . 9 . 24 . . 463 9 369 Effects 12 | . . . . . . . 5 . . . . 4 . . . . . . . . . . . . . . . 3 . Shutdowns 3 | . . . . . . . . . . . . 3 . . . . . . . . . . . . . . . . . Energy Bleed 3 | . . . . . . . 2 . . . . 1 . . . . . . . . . . . . . . . . . Interference 6 | . . . . . . . 3 . . . . . . . . . . . . . . . . . . . . 3 . Siege Activations . | . . . . . . . . . . . . . . . . . . . . . . . . . . . . . . Martial Activations . | . . . . . . . . . . . . . . . . . . . . . . . . . . . . . . Shielding Activations . | . . . . . . . . . . . . . . . . . . . . . . . . . . . . . . Robots Disrupted . | . . . . . . . . . . . . . . . . . . . . . . . . . . . . . . Combat Hostiles . | . . . . . . . . . . . . . . . . . . . . . . . . . . . . . . Robots Corrupted 4 | . . . . . . . . . 4 . . . . . . . . . . . . . . . . . . . . Combat Hostiles 4 | . . . . . . . . . 4 . . . . . . . . . . . . . . . . . . . . Parts Fried 9 | . . . . . . . . . 4 . 1 . . . . . . . . . . . . . . . 4 . . Impact Corruptions . | . . . . . . . . . . . . . . . . . . . . . . . . . . . . . . Robots Melted 1 | . . 1 . . . . . . . . . . . . . . . . . . . . . . . . . . . Combat Hostiles 1 | . . 1 . . . . . . . . . . . . . . . . . . . . . . . . . . . Parts Melted 6 | . . 4 . . . . 2 . . . . . . . . . . . . . . . . . . . . . . Heat Transferred 2449 | . . 1263 . . . . 666 222 298 . . . . . . . . . . . . . . . . . . . . Parts Sabotaged . | . . . . . . . . . . . . . . . . . . . . . . . . . . . . . . Parts Stolen . | . . . . . . . . . . . . . . . . . . . . . . . . . . . . . . Parts Stripped . | . . . . . . . . . . . . . . . . . . . . . . . . . . . . . . Power Chain Reactions 2 | . . . . . . . . . 1 . 1 . . . . . . . . . . . . . . . . . . Alert | -11 -10 -10 -9 -9 -6 -6 -6 -6 -6 -6 -6 -5 -5 -5 -5 -5 -5 -4 -4 -4 -4 -4 -3 -3 -3 -3 -2 -2 -2 ------- Run | Yrd Mat Sub Rec Scr Fac Was Fac Ext Cet Arc Hub Fac Was Fac Upp Upp Zhi Pro Fac Upp Upp War Pro Res Arm Lab Res Tes Frg Maximum Alert Level 4 | . . . . . 1 . 1 1 1 1 1 . . . . . . . . . . . . . . . . 1 4 Low Security (%) 81 | 100 100 . 100 . 96 100 64 67 13 58 26 100 100 100 . . . . 100 . . . . 100 100 . 100 38 11 Level 1 14 | . . . . . 3 . 35 32 86 41 73 . . . . . . . . . . . . . . . . 61 27 Level 2 1 | . . . . . . . . . . . . . . . . . . . . . . . . . . . . . 15 Level 3 1 | . . . . . . . . . . . . . . . . . . . . . . . . . . . . . 17 Level 4 2 | . . . . . . . . . . . . . . . . . . . . . . . . . . . . . 29 Level 5 . | . . . . . . . . . . . . . . . . . . . . . . . . . . . . . . High Security . | . . . . . . . . . . . . . . . . . . . . . . . . . . . . . . Max Security . | . . . . . . . . . . . . . . . . . . . . . . . . . . . . . . Peak Influence 1489 | 5 108 . 80 . 206 69 257 307 336 256 359 171 3 61 . . . . 167 . . . . 53 59 . 179 322 1489 Initial 171 | . . . 60 . . 69 41 42 124 126 37 171 3 . . . . . 150 . . . . . 20 . . 75 122 Average 119 | . 30 . 57 . 11 67 165 120 252 185 218 31 2 12 . . . . 50 . . . . 14 29 . 82 223 710 Influence Increases 7924 | 5 360 210 30 . 445 . 407 760 371 240 533 295 . 293 5 10 15 10 431 5 . 315 . 211 197 . 313 391 2072 Destroy 0b10 Robot/C 1460 | . 220 140 . . . . . 380 160 80 20 . . 20 . . . . . . . . . . . . 60 80 300 Destroy 0b10 Robot/NC 530 | 5 40 . . . 40 . 20 40 10 45 15 75 . 25 5 10 15 10 45 5 . . . 20 5 . 15 40 45 Destroy Leader 262 | . 54 10 . . 4 . 6 34 . . 12 4 . 16 . . . . 14 . . . . 8 2 . 10 16 72 Allied During Kill 494 | . . . . . . . . 216 165 83 8 . . . . . . . . . . . . . . . . 22 . Successful Hack 863 | . . . . . 100 . 46 40 24 . 20 31 . 131 . . . . 116 . . . . 69 27 . 108 107 44 Select Force Hacks 180 | . . . 30 . . . . . . . 150 . . . . . . . . . . . . . . . . . . Disable Machine 390 | . . . . . 30 . 30 15 . 30 30 15 . 30 . . . . 15 . . . . . 90 . 15 75 15 Anti-Garrison Action 750 | . . . . . 200 . 200 . . . 200 . . . . . . . . . . . . . . . . . 150 Destroy Structure 595 | . 16 . . . 41 . 45 35 12 2 78 140 . 56 . . . . 46 . . . . 24 28 . 15 6 51 Advance Influence 150 | . . . . . . . . . . . . . . . . . . . 150 . . . . . . . . . . Partial Spotted 585 | . . . . . 15 . 60 . . . . 30 . 15 . . . . 45 . . . . 30 45 . 30 45 270 Lose Combat Pursuer 1665 | . 30 60 . . 15 . . . . . . . . . . . . . . . . 315 . 60 . . 60 . 1125 Influence Decreases 6450 | 5 328 116 126 30 247 139 380 623 279 447 291 636 9 273 25 10 15 10 431 5 . 192 123 172 203 33 178 308 816 Entered New Map 1186 | . . 16 66 30 . 129 18 44 99 189 71 179 6 . 8 . . . . . . . 123 . 19 33 . 60 96 Time Decay 4306 | 5 328 90 60 . 237 10 362 399 100 198 50 442 3 243 17 10 15 10 428 5 . 192 . 172 184 . 98 238 410 Lost Part 453 | . . 10 . . . . . . . . 30 10 . . . . . . 3 . . . . . . . 80 10 310 Lost Ally 505 | . . . . . 10 . . 180 80 60 140 5 . 30 . . . . . . . . . . . . . . . Squads Dispatched 97 | . 1 . . . 14 . 8 1 . . 7 14 . 13 . . . . 8 . . . . 6 8 . 7 4 6 Investigation 53 | . . . . . 9 . 6 . . . 5 9 . 9 . . . . 5 . . . . 3 2 . 1 1 3 Extermination 21 | . . . . . 3 . 1 . . . . 4 . 3 . . . . 3 . . . . 1 2 . 1 2 1 Reinforcement 21 | . 1 . . . 2 . 1 1 . . 2 1 . 1 . . . . . . . . . 2 4 . 3 1 2 Assault . | . . . . . . . . . . . . . . . . . . . . . . . . . . . . . . Garrison 2 | . . . . . . . . . . . . . . . . . . . . . . . . . . . 2 . . Intercept . | . . . . . . . . . . . . . . . . . . . . . . . . . . . . . . Searches Triggered . | . . . . . . . . . . . . . . . . . . . . . . . . . . . . . . Unchained Authorized 6 | . . . . . . . . . . . . . . . . . . . 1 1 . . 1 . 1 . 1 1 . Construction Impeded 1 | . . . . . . . . . . . . . . . . . . . . . . . . . . . 1 . . Haulers Reinforced 1 | . . . . . . . . . . . . . . 1 . . . . . . . . . . . . . . . Active Scanning Responses . | . . . . . . . . . . . . . . . . . . . . . . . . . . . . . . Cargo Convoy Interrupts 1 | . . . . . 1 . . . . . . . . . . . . . . . . . . . . . . . . Stealth | -11 -10 -10 -9 -9 -6 -6 -6 -6 -6 -6 -6 -5 -5 -5 -5 -5 -5 -4 -4 -4 -4 -4 -3 -3 -3 -3 -2 -2 -2 --------- Run | Yrd Mat Sub Rec Scr Fac Was Fac Ext Cet Arc Hub Fac Was Fac Upp Upp Zhi Pro Fac Upp Upp War Pro Res Arm Lab Res Tes Frg Distress Signals 25 | . 1 . . . 1 . 1 3 2 . . 2 . 2 . . . . . . . . . 6 2 . 2 . 3 Communications Jammed 17 | . . . . . . . . . . . . . . . . . . . . . . . . 7 1 . 5 . 4 Distress Signals 17 | . . . . . . . . . . . . . . . . . . . . . . . . 7 1 . 5 . 4 Times Spotted 473 | . 28 28 . . 34 4 10 15 10 6 18 31 5 10 7 . . 9 5 4 3 43 . 10 11 . 26 10 146 Peak Tracking Total 20 | . 4 5 . . 8 4 6 2 5 1 16 8 5 4 4 . . 7 2 3 3 14 . 4 8 . 14 3 20 Tactical Retreats 73 | . 2 1 . . 7 . 2 . . . . 7 . 2 2 . . 1 . 1 2 11 . 2 2 . 6 . 25 ECM-based Alert Blocks 84 | . . . . . 20 . 5 . . . . 18 . 5 8 . . 1 . 3 3 . . . 3 . 14 . 4 Traps | -11 -10 -10 -9 -9 -6 -6 -6 -6 -6 -6 -6 -5 -5 -5 -5 -5 -5 -4 -4 -4 -4 -4 -3 -3 -3 -3 -2 -2 -2 ------- Run | Yrd Mat Sub Rec Scr Fac Was Fac Ext Cet Arc Hub Fac Was Fac Upp Upp Zhi Pro Fac Upp Upp War Pro Res Arm Lab Res Tes Frg Traps Triggered 19 | . 1 1 . . 1 . 1 3 . . . 3 . 2 . . . . 2 . . 1 . . 1 . . . 3 Indirectly . | . . . . . . . . . . . . . . . . . . . . . . . . . . . . . . Trap Hack Attempts 7 | . . . . . 2 . . . . . . . . . . . . . . . . . . . 5 . . . . Triggered . | . . . . . . . . . . . . . . . . . . . . . . . . . . . . . . Disarmed 1 | . . . . . . . . . . . . . . . . . . . . . . . . . 1 . . . . Reprogrammed 1 | . . . . . . . . . . . . . . . . . . . . . . . . . 1 . . . . Reused . | . . . . . . . . . . . . . . . . . . . . . . . . . . . . . . Traps Extracted . | . . . . . . . . . . . . . . . . . . . . . . . . . . . . . . Installed . | . . . . . . . . . . . . . . . . . . . . . . . . . . . . . . Triggered . | . . . . . . . . . . . . . . . . . . . . . . . . . . . . . . Machines | -11 -10 -10 -9 -9 -6 -6 -6 -6 -6 -6 -6 -5 -5 -5 -5 -5 -5 -4 -4 -4 -4 -4 -3 -3 -3 -3 -2 -2 -2 ---------- Run | Yrd Mat Sub Rec Scr Fac Was Fac Ext Cet Arc Hub Fac Was Fac Upp Upp Zhi Pro Fac Upp Upp War Pro Res Arm Lab Res Tes Frg Machines Disabled 36 | . . 2 . . 2 . 2 1 1 2 2 1 . 2 1 . . 1 1 1 . 1 . . 6 2 1 5 2 Max in Single Turn 2 | . . 1 . . 1 . 1 1 1 . 2 1 . 1 1 . . 1 1 1 . 1 . . 1 1 1 1 1 Garrison Access 16 | . . . . . 3 . 2 . . . 1 4 . 1 . . . . 3 . . . . 1 . . . . 1 Network Hub 4 | . . . . . . . . . . . 4 . . . . . . . . . . . . . . . . . . Machines Repaired . | . . . . . . . . . . . . . . . . . . . . . . . . . . . . . . Machines Dismantled . | . . . . . . . . . . . . . . . . . . . . . . . . . . . . . . Machines Sabotaged 3 | . . . . . . . . . . . 3 . . . . . . . . . . . . . . . . . . Overloaded Fab Kills . | . . . . . . . . . . . . . . . . . . . . . . . . . . . . . . Hacking | -11 -10 -10 -9 -9 -6 -6 -6 -6 -6 -6 -6 -5 -5 -5 -5 -5 -5 -4 -4 -4 -4 -4 -3 -3 -3 -3 -2 -2 -2 --------- Run | Yrd Mat Sub Rec Scr Fac Was Fac Ext Cet Arc Hub Fac Was Fac Upp Upp Zhi Pro Fac Upp Upp War Pro Res Arm Lab Res Tes Frg Machines Accessed 174 | . 1 2 1 2 23 . 16 10 4 . 6 29 . 18 1 . 5 1 14 2 . 6 . 7 6 1 4 8 7 Terminals 84 | . 1 . . . 7 . 7 10 4 . 5 13 . 7 1 . . 1 5 1 . . . 5 4 . 4 7 2 Fabricators 13 | . . . . . 2 . 2 . . . . 3 . 2 . . . . 3 . . . . . 1 . . . . Repair Stations 4 | . . . . . 1 . . . . . . . . . . . . . . . . . . . . . . 1 2 Recycling Units 37 | . . . 1 . 7 . 5 . . . . 8 . 8 . . . . 3 . . . . 1 1 . . . 3 Scanalyzers 3 | . . . . . 2 . . . . . . 1 . . . . . . . . . . . . . . . . . Garrison Access 16 | . . . . . 4 . 2 . . . 1 4 . 1 . . . . 3 . . . . 1 . . . . . Total Hacks 540 | . 1 2 3 2 61 . 37 14 12 . 16 92 . 57 7 . 17 8 52 3 . 9 . 23 24 1 30 48 21 Successful 315 | . 1 2 2 2 26 . 19 9 6 . 11 51 . 32 7 . 17 8 31 3 . 9 . 15 17 1 11 25 10 Failed 224 | . . . 1 . 35 . 18 5 6 . 5 40 . 25 . . . . 21 . . . . 8 7 . 19 23 11 Catastrophic 22 | . . . . . 6 . 1 1 . . . 3 . 1 . . . . 4 . . . . 2 . . 2 2 . Database Lockouts 1 | . . . . . . . . . . . . 1 . . . . . . . . . . . . . . . . . Manual 264 | . 1 . 2 . 22 . 23 3 . . 11 47 . 31 . . . . 34 . . . . 17 9 . 26 26 12 Terminals 304 | . 1 . . . 16 . 13 14 12 . 13 41 . 19 7 . . 8 28 2 . . . 21 21 . 30 46 12 Fabricators 37 | . . . . . 4 . 6 . . . . 10 . 6 . . . . 9 . . . . . 2 . . . . Repair Stations 8 | . . . . . 3 . . . . . . . . . . . . . . . . . . . . . . 2 3 Recycling Units 119 | . . . 3 . 20 . 14 . . . . 35 . 30 . . . . 9 . . . . 1 1 . . . 6 Scanalyzers 11 | . . . . . 9 . . . . . . 2 . . . . . . . . . . . . . . . . . Garrison Access 29 | . . . . . 9 . 4 . . . 3 4 . 2 . . . . 6 . . . . 1 . . . . . Terminal Hacks 125 | . . 2 . 2 5 . . 8 6 . 2 9 . 4 7 . 17 8 8 3 . 9 . 7 9 1 5 11 2 Record 38 | . . . . 1 . . . . 5 . . . . . 7 . 5 8 . 3 . 7 . . . 1 . 1 . Part Schematic 6 | . . . . . . . . . . . . 1 . . . . 4 . 1 . . . . . . . . . . Robot Analysis 5 | . . . . . . . . . . . . . . . . . 4 . . . . . . . . . . 1 . Prototype ID Bank 5 | . . . . . . . . . . . . . . . . . 4 . . . . . . . . . . 1 . Open Door 12 | . . 1 . . . . . 8 1 . . . . . . . . . . . . 2 . . . . . . . Level Access Points 2 | . . . . . . . . . . . . . . . . . . . . . . . . 1 . . 1 . . Branch Access Points 4 | . . . . . . . . . . . . . . . . . . . . . . . . 1 . . 3 . . Machine Index 1 | . . . . . . . . . . . . . . . . . . . . . . . . . 1 . . . . Terminal Index 5 | . . . . . . . . . . . . . . . . . . . 1 . . . . 1 1 . . 1 1 Garrison Index 2 | . . . . . . . . . . . . . . . . . . . . . . . . . . . 1 1 . Locate Traps 16 | . . . . . 4 . . . . . 1 3 . 2 . . . . . . . . . . 2 . . 3 1 Patrol Status 1 | . . . . . . . . . . . . . . . . . . . . . . . . 1 . . . . . Transport Status 1 | . . . . . . . . . . . . . . . . . . . . . . . . . . . . 1 . Extermination Status 2 | . . . . . . . . . . . . 1 . . . . . . 1 . . . . . . . . . . Recall Investigation 4 | . . . . . . . . . . . 1 . . . . . . . . . . . . . 3 . . . . Recall Extermination 7 | . . . . . . . . . . . . 3 . . . . . . 2 . . . . 1 1 . . . . Hauler Manifests 6 | . . . . . 1 . . . . . . 1 . 1 . . . . 1 . . . . 1 . . . 1 . Registered Components 1 | . . . . . . . . . . . . . . . . . . . 1 . . . . . . . . . . Registered Prototypes 5 | . . . . . . . . . . . . . . 1 . . . . 1 . . . . 1 1 . . 1 . Proto ID Catalog 2 | . . 1 . 1 . . . . . . . . . . . . . . . . . . . . . . . . . Fabricator Hacks 13 | . . . . . 1 . 1 . . . . 4 . 1 . . . . 5 . . . . . 1 . . . . Network Status 6 | . . . . . 1 . 1 . . . . 1 . 1 . . . . 1 . . . . . 1 . . . . Load Schematic 3 | . . . . . . . . . . . . 1 . . . . . . 2 . . . . . . . . . . Build 4 | . . . . . . . . . . . . 2 . . . . . . 2 . . . . . . . . . . Repair Station Hacks 4 | . . . . . 2 . . . . . . . . . . . . . . . . . . . . . . 1 1 Scan Component 1 | . . . . . 1 . . . . . . . . . . . . . . . . . . . . . . . . Repair 1 | . . . . . 1 . . . . . . . . . . . . . . . . . . . . . . . . Refit 2 | . . . . . . . . . . . . . . . . . . . . . . . . . . . . 1 1 Recycling Unit Hacks 25 | . . . 1 . 2 . 4 . . . . 8 . 7 . . . . 1 . . . . . 1 . . . 1 Retrieve Components 25 | . . . 1 . 2 . 4 . . . . 8 . 7 . . . . 1 . . . . . 1 . . . 1 Scanalyzer 4 | . . . . . 3 . . . . . . 1 . . . . . . . . . . . . . . . . . Insert Component 3 | . . . . . 3 . . . . . . . . . . . . . . . . . . . . . . . . Retrieve Study 1 | . . . . . . . . . . . . 1 . . . . . . . . . . . . . . . . . Garrison Access Hacks 12 | . . . . . 2 . 1 . . . . 4 . 1 . . . . 3 . . . . 1 . . . . . Seal Access 12 | . . . . . 2 . 1 . . . . 4 . 1 . . . . 3 . . . . 1 . . . . . Unauthorized Hacks 132 | . 1 . 1 . 11 . 13 1 . . 9 25 . 19 . . . . 14 . . . . 7 6 . 6 13 6 Terminals 78 | . 1 . . . 4 . 6 1 . . 8 12 . 7 . . . . 6 . . . . 6 5 . 6 13 3 Track 14 | . . . . . . . . . . . . 2 . 2 . . . . 1 . . . . 2 1 . 1 5 . Assimilate 8 | . . . . . 1 . . . . . 1 2 . 2 . . . . . . . . . . . . 1 1 . Botnet 42 | . . . . . 3 . 5 1 . . 2 7 . 3 . . . . 4 . . . . 3 4 . 2 6 2 Disrupt 2 | . . . . . . . . . . . 1 . . . . . . . . . . . . . . . 1 . . Operators 8 | . 1 . . . . . 1 . . . . 1 . . . . . . 1 . . . . 1 . . 1 1 1 Sabotage 4 | . . . . . . . . . . . 4 . . . . . . . . . . . . . . . . . . Fabricators 15 | . . . . . . . 2 . . . . 5 . 4 . . . . 3 . . . . . 1 . . . . Report 3 | . . . . . . . 1 . . . . 1 . 1 . . . . . . . . . . . . . . . Prioritize 4 | . . . . . . . . . . . . 2 . . . . . . 2 . . . . . . . . . . Liberate 1 | . . . . . . . . . . . . . . 1 . . . . . . . . . . . . . . . Haulers 5 | . . . . . . . 1 . . . . 1 . 1 . . . . 1 . . . . . 1 . . . . Recompile 2 | . . . . . . . . . . . . 1 . 1 . . . . . . . . . . . . . . . Repair Stations . | . . . . . . . . . . . . . . . . . . . . . . . . . . . . . . Recycling Units 36 | . . . 1 . 6 . 4 . . . . 8 . 8 . . . . 5 . . . . 1 . . . . 3 Reject 1 | . . . . . . . . . . . . . . . . . . . 1 . . . . . . . . . . Mask 1 | . . . . . . . . . . . . . . . . . . . 1 . . . . . . . . . . Tunnel 1 | . . . 1 . . . . . . . . . . . . . . . . . . . . . . . . . . Fedlink 33 | . . . . . 6 . 4 . . . . 8 . 8 . . . . 3 . . . . 1 . . . . 3 Scanalyzers . | . . . . . . . . . . . . . . . . . . . . . . . . . . . . . . Garrison Access 3 | . . . . . 1 . 1 . . . 1 . . . . . . . . . . . . . . . . . . Jam 3 | . . . . . 1 . 1 . . . 1 . . . . . . . . . . . . . . . . . . Data Cores Recovered 1 | . . . . . . . . . . . . . . . . . . . . . . . . . . . . . 1 Used . | . . . . . . . . . . . . . . . . . . . . . . . . . . . . . . Hacking Detections 79 | . . . . . 17 . 12 4 3 . 3 11 . 7 . . . . 6 1 . . . 3 1 . 2 7 2 Full Trace Events 4 | . . . . . 2 . 1 . . . . . . . . . . . 1 . . . . . . . . . . Feedback Events . | . . . . . . . . . . . . . . . . . . . . . . . . . . . . . . Feedback Blocked . | . . . . . . . . . . . . . . . . . . . . . . . . . . . . . . Robot Schematics Acquired . | . . . . . . . . . . . . . . . . . . . . . . . . . . . . . . Robots Built 1 | . . . . . . . . . . . . . . . . . . . 1 . . . . . . . . . . Authchips . | . . . . . . . . . . . . . . . . . . . . . . . . . . . . . . Time 62 | . . . . . . . . . . . . . . . . . . . 62 . . . . . . . . . . Total Robot Build Rating 7 | . . . . . . . . . . . . . . . . . . . 7 . . . . . . . . . . Part Schematics Acquired 6 | . . . . . . . . . . . . 1 . . . . 4 . 1 . . . . . . . . . . Parts Built 4 | . . . . . . . . . . . . 3 . . . . . . 1 . . . . . . . . . . Authchips 1 | . . . . . . . . . . . . 1 . . . . . . . . . . . . . . . . . Time 213 | . . . . . . . . . . . . 175 . . . . . . 38 . . . . . . . . . . Total Part Build Rating 26 | . . . . . . . . . . . . 21 . . . . . . 5 . . . . . . . . . . Part Studies Acquired 1 | . . . . . . . . . . . . 1 . . . . . . . . . . . . . . . . . Parts Repaired 1 | . . . . . 1 . . . . . . . . . . . . . . . . . . . . . . . . Time 100 | . . . . . 100 . . . . . . . . . . . . . . . . . . . . . . . . Parts Recycled . | . . . . . . . . . . . . . . . . . . . . . . . . . . . . . . Recycled Matter . | . . . . . . . . . . . . . . . . . . . . . . . . . . . . . . Retrieved Matter . | . . . . . . . . . . . . . . . . . . . . . . . . . . . . . . Retrieved Components 52 | . . . 1 . 9 . 6 . . . . 22 . 10 . . . . 2 . . . . . 1 . . . 1 Parts Scanalyzed 1 | . . . . . 1 . . . . . . . . . . . . . . . . . . . . . . . . Part Schematics Acquired . | . . . . . . . . . . . . . . . . . . . . . . . . . . . . . . Parts Damaged 1 | . . . . . 1 . . . . . . . . . . . . . . . . . . . . . . . . Bothacking | -11 -10 -10 -9 -9 -6 -6 -6 -6 -6 -6 -6 -5 -5 -5 -5 -5 -5 -4 -4 -4 -4 -4 -3 -3 -3 -3 -2 -2 -2 ------------ Run | Yrd Mat Sub Rec Scr Fac Was Fac Ext Cet Arc Hub Fac Was Fac Upp Upp Zhi Pro Fac Upp Upp War Pro Res Arm Lab Res Tes Frg Used RIF Installer . | . . . . . . . . . . . . . . . . . . . . . . . . . . . . . . Robots Hacked 25 | . . . . 1 2 . . 3 . . 1 3 . 3 . . . . 8 . . 3 . 1 . . . . . Non-combat 20 | . . . . . 2 . . 2 . . 1 3 . 3 . . . . 8 . . . . 1 . . . . . Combat 5 | . . . . 1 . . . 1 . . . . . . . . . . . . . 3 . . . . . . . Robot Hacks Applied 26 | . . . . 1 3 . . 3 . . 1 3 . 3 . . . . 8 . . 3 . 1 . . . . . parse_system 8 | . . . . 1 . . . 3 . . . . . . . . . . 1 . . 3 . . . . . . . no_distress 12 | . . . . . 1 . . . . . 1 2 . 3 . . . . 4 . . . . 1 . . . . . find_chute 4 | . . . . . 1 . . . . . . . . . . . . . 3 . . . . . . . . . . find_fabricator 1 | . . . . . 1 . . . . . . . . . . . . . . . . . . . . . . . . find_recycling 1 | . . . . . . . . . . . . 1 . . . . . . . . . . . . . . . . . Relay Couplers Released 2 | . . . . . . . . . . . . . . . . . . . . . . . . . . . . . 2 Machine Destruction 2 | . . . . . . . . . . . . . . . . . . . . . . . . . . . . . 2 Fabnet Peak Effective % . | . . . . . . . . . . . . . . . . . . . . . . . . . . . . . . Robots Rewired 14 | . . . . . . . . 13 . . . . . . . . . . . . . . . . . . . 1 . Allies Hacked 3 | . . . . . . . . . . . . . . 3 . . . . . . . . . . . . . . . Hacks Repelled . | . . . . . . . . . . . . . . . . . . . . . . . . . . . . . . Allies | -11 -10 -10 -9 -9 -6 -6 -6 -6 -6 -6 -6 -5 -5 -5 -5 -5 -5 -4 -4 -4 -4 -4 -3 -3 -3 -3 -2 -2 -2 -------- Run | Yrd Mat Sub Rec Scr Fac Was Fac Ext Cet Arc Hub Fac Was Fac Upp Upp Zhi Pro Fac Upp Upp War Pro Res Arm Lab Res Tes Frg Total Allies 35 | . . . . . 1 . . 25 . . 1 2 . 4 . . . . 1 . . . . . . . . 1 . Largest Group 15 | . . . . . . . . 15 15 10 7 2 . 2 . . . . 1 . . . . . . . . 1 . Highest-Rated Group 406 | . . . . . . . . 406 406 252 192 36 . 98 . . . . 45 . . . . . . . . 118 . Highest-Rated Ally 159 | . . . . . . . . 159 39 39 39 26 . 49 . . . . 45 . . . . . . . . 118 . Initial UFD Resources 133 | . . . . . 23 45 45 53 53 53 53 55 81 81 97 97 97 101 101 117 117 117 120 120 130 130 133 133 133 Total Orders 4 | . . . . . . . . . . . . 2 . 2 . . . . . . . . . . . . . . . STAY 2 | . . . . . . . . . . . . 1 . 1 . . . . . . . . . . . . . . . FOLLOW 2 | . . . . . . . . . . . . 1 . 1 . . . . . . . . . . . . . . . Ally Attacks 242 | . . . . . . . . 161 34 26 10 . . 5 . . . . . . . . . . . . . 6 . Total Damage 4983 | . . . . . . . . 3019 500 479 315 . . 264 . . . . . . . . . . . . . 406 . Kills 34 | . . . . . . . . 24 2 4 1 . . 1 . . . . . . . . . . . . . 2 . Allies Corrupted 2 | . . . . . . . . 1 . . . . . 1 . . . . . . . . . . . . . . . Allies Melted 1 | . . . . . . . . . . . . . . . . . . . . . . 1 . . . . . . . Intel | -11 -10 -10 -9 -9 -6 -6 -6 -6 -6 -6 -6 -5 -5 -5 -5 -5 -5 -4 -4 -4 -4 -4 -3 -3 -3 -3 -2 -2 -2 ------- Run | Yrd Mat Sub Rec Scr Fac Was Fac Ext Cet Arc Hub Fac Was Fac Upp Upp Zhi Pro Fac Upp Upp War Pro Res Arm Lab Res Tes Frg Active Infowar (turns) 16492 | . 51 2227 128 893 1306 23 807 1325 211 400 114 2137 25 942 385 331 130 248 1390 215 59 731 123 483 402 369 211 509 317 Optics 10415 | . . . . . 1198 23 802 1325 211 400 114 2137 25 942 385 331 130 248 1200 . . . . . . . 118 509 317 Sensors 12225 | . . . . . 1262 23 803 968 109 400 112 2044 25 942 372 327 130 248 1365 215 59 729 123 483 402 361 93 386 244 Terrain 8132 | . . . . . 835 23 798 954 108 400 111 1349 25 737 381 327 130 248 1158 204 5 339 . . . . . . . Structural 3630 | . 51 2227 128 893 331 . . . . . . . . . . . . . . . . . . . . . . . . Machine Analysis 1404 | . . . . . . . . . . . . 1404 . . . . . . . . . . . . . . . . . Triangulation 75 | . . . . . . . . . . . . 75 . . . . . . . . . . . . . . . . . Cloaking 2913 | . . . . . . . . . . . . 143 25 794 385 327 130 248 861 . . . . . . . . . . Jamming 2430 | . . . . . . . 1 . . . . . . . . . . . 523 3 . . . 439 259 369 126 500 210 ECM 2124 | . . . . . 389 . 144 . 3 . . 350 . 340 81 . 7 46 95 52 54 1 . . 143 . 115 167 137 Robot Analysis Total 5 | . . . . . . . . . . . . . . . . . 4 . . . . . . . . . . 1 . Derelict Logs Recovered 11 | . . 1 . 5 . . . . . . . . . . 1 1 . 1 . 2 . . . . . . . . . Drone Launches . | . . . . . . . . . . . . . . . . . . . . . . . . . . . . . . Drone Recoveries . | . . . . . . . . . . . . . . . . . . . . . . . . . . . . . . Exploration | -11 -10 -10 -9 -9 -6 -6 -6 -6 -6 -6 -6 -5 -5 -5 -5 -5 -5 -4 -4 -4 -4 -4 -3 -3 -3 -3 -2 -2 -2 ------------- Run | Yrd Mat Sub Rec Scr Fac Was Fac Ext Cet Arc Hub Fac Was Fac Upp Upp Zhi Pro Fac Upp Upp War Pro Res Arm Lab Res Tes Frg Turns Passed 23542 | 40 1172 2570 128 5355 1380 23 821 1325 211 400 114 2137 25 942 385 331 130 248 1390 215 59 1003 156 483 402 369 220 509 999 Spaces Moved 31986 | 14 579 1362 107 2285 2564 66 1284 1301 193 414 225 4356 68 2030 866 722 224 456 2687 614 111 1556 440 1117 1001 492 676 1240 2936 Core . | . . . . . . . . . . . . . . . . . . . . . . . . . . . . . . Treads 1943 | 14 579 1350 . . . . . . . . . . . . . . . . . . . . . . . . . . . Legs . | . . . . . . . . . . . . . . . . . . . . . . . . . . . . . . Wheels 2404 | . . 12 107 2285 . . . . . . . . . . . . . . . . . . . . . . . . . Hover 18 | . . . . . . . . . . . . . . . . . . . . . . . . . . . . . 18 Flight 27621 | . . . . . 2564 66 1284 1301 193 414 225 4356 68 2030 866 722 224 456 2687 614 111 1556 440 1117 1001 492 676 1240 2918 Fastest Speed 8 | 160 160 120 120 100 34 34 34 34 34 34 34 37 37 37 37 37 37 37 25 25 25 25 25 25 25 25 22 8 8 Average Speed 53 | 160 160 159 120 231 35 34 34 34 37 34 36 37 37 37 37 37 37 37 34 25 25 27 25 25 25 25 22 17 18 Slowest Speed 295 | 160 160 240 120 295 40 34 34 34 95 34 37 120 37 200 37 37 37 37 37 25 25 90 25 25 25 25 25 25 95 Overloaded Moves 255 | . . . . . . . . . . . . . . . . . . . . . . . . . . . . 10 245 Propulsion Burnouts . | . . . . . . . . . . . . . . . . . . . . . . . . . . . . . . Robots Hopped 104 | . . . . . 19 . 8 4 . . 3 24 . 10 . . . . 16 2 . 1 . 1 . . . 3 13 Potential Cave-ins 6 | . . . . . . . . . . . . . . . . . . . . . . . 2 . . . . . 4 Cave-ins Triggered . | . . . . . . . . . . . . . . . . . . . . . . . . . . . . . . Teleports 1 | . . . . . . . . . . . . . . . . . . . . . . . . . 1 . . . . Exploration Rate (%) 64 | 2 85 87 26 91 57 88 35 95 85 90 28 82 79 47 89 87 64 72 51 81 22 96 58 26 44 95 19 91 60 Regions Visited 29 Branch Regions 19 Pre-discovered Areas 11 | . . 1 1 3 1 . . . . . . . . . . 1 3 1 . . . . . . . . . . . Known Exits Taken 20 | . . . . . . . 1 1 1 1 1 . . 1 1 1 1 1 1 1 1 1 1 1 1 1 1 1 . Unknown Exits Taken 5 | 1 1 1 1 1 . . . . . . . . . . . . . . . . . . . . . . . . . Scrap Searched 22 | . . 7 . 3 . . . . . . . . . . 4 1 . 3 . 1 1 . 2 . . . . . . Spaces Dug 339 | . 9 11 . . 41 . 44 11 . 1 5 71 . 28 2 7 . 9 26 7 . 6 9 12 15 . 5 2 18 Terrain Destroyed 539 | . 13 30 . . 41 . 46 19 14 1 157 71 . 28 2 7 . 10 26 7 . 6 9 12 15 . 5 2 18 Melee 216 | . . . . . 30 . . 11 . 1 5 60 . 24 2 4 . 7 18 2 . 6 2 12 12 . 5 2 13 Projectile 132 | . 2 16 . . 11 . 46 8 . . . 11 . 4 . 3 . 3 8 5 . . 7 . 3 . . . 5 AOE 191 | . 11 14 . . . . . . 14 . 152 . . . . . . . . . . . . . . . . . . Terrain Rammed . | . . . . . . . . . . . . . . . . . . . . . . . . . . . . . . Walls Destroyed . | . . . . . . . . . . . . . . . . . . . . . . . . . . . . . . Machines Disabled . | . . . . . . . . . . . . . . . . . . . . . . . . . . . . . . Actions | -11 -10 -10 -9 -9 -6 -6 -6 -6 -6 -6 -6 -5 -5 -5 -5 -5 -5 -4 -4 -4 -4 -4 -3 -3 -3 -3 -2 -2 -2 --------- Run | Yrd Mat Sub Rec Scr Fac Was Fac Ext Cet Arc Hub Fac Was Fac Upp Upp Zhi Pro Fac Upp Upp War Pro Res Arm Lab Res Tes Frg Total 37131 | 24 711 1618 106 2349 2925 65 1592 2140 296 653 241 4710 67 2135 920 768 258 505 3059 658 140 2118 473 1279 1110 727 721 1462 3301 Wait 3333 | . 34 61 . 29 221 . 226 727 61 220 . 174 . 44 36 31 6 24 240 24 29 482 21 130 58 219 9 134 93 Move 31757 | 13 578 1361 106 2284 2528 65 1267 1292 192 413 219 4308 67 2010 865 721 223 455 2654 609 110 1553 439 1114 1000 491 675 1233 2912 Hop 99 | . . . . . 17 . 8 4 . . 3 24 . 9 . . . . 16 2 . 1 . 1 . . . 3 11 Pick Up 177 | 1 14 24 . 19 21 . 7 12 1 2 . 14 . 2 . . 3 . 19 2 . 7 . 2 3 2 6 5 11 Fast Attach 195 | . 2 9 . 6 12 . 2 . 2 . 3 23 . 4 5 1 6 . 15 2 . 21 . . 2 5 6 14 55 Attach 62 | 2 . 7 . 1 9 . 2 1 . . . 7 . . . . 2 . 10 . . 2 . 2 2 . 7 2 6 Detach 19 | . . . . . 3 . . . . . . 2 . 2 . . . . 4 . . 2 . . . . 2 1 3 Swap 224 | 2 13 36 . . 18 . 6 6 14 1 4 29 . 8 4 4 3 8 13 7 1 6 4 5 8 2 1 11 10 Drop 321 | 2 11 34 . 9 28 . 7 12 3 3 2 32 . 5 5 1 8 . 30 3 . 31 . . 6 4 3 26 56 Fire 317 | 4 57 86 . . 11 . 67 17 18 . 1 11 . 4 1 3 . 4 8 5 . . 7 . 3 . 4 . 6 Melee 529 | . . . . 1 55 . . 44 5 14 9 86 . 47 4 7 7 14 50 4 . 13 2 25 23 4 8 32 75 Ram . | . . . . . . . . . . . . . . . . . . . . . . . . . . . . . . Kick . | . . . . . . . . . . . . . . . . . . . . . . . . . . . . . . Crush 2 | . 2 . . . . . . . . . . . . . . . . . . . . . . . . . . . . Escape Stasis 28 | . . . . . . . . 25 . . . . . . . . . . . . . . . . . . . . 3 Rewire 1 | . . . . . . . . . . . . . . . . . . . . . . . . . . . . 1 . Trap 7 | . . . . . 2 . . . . . . . . . . . . . . . . . . . 5 . . . . Miscellaneous 60 | . . . . . . . . . . . . . . . . . . . . . . . . . . . . . 60 Route ------- -11/Scrapyard -10/Materials (discovered 5 exits: [*Mat x3] / [*Min] / *Sub) -10/Subcaves (discovered 3 exits: [*Mat x2] / *Rec) -9/Recycling -9/Scraptown (discovered 2 exits: *Fac x2) -6/Factory (discovered 5 exits: *Fac x3 / [Low] / Ext) -6/Waste -6/Factory (discovered 5 exits: *Fac x2 / [Low] / *Ext x2) -6/Extension (discovered 3 exits: *Fac x2 / *Cet) -6/Cetus (discovered 2 exits: *Fac / *Arc) -6/Archives (discovered 3 exits: *Fac / *Hub x2) -6/Hub_04(d) (discovered 2 exits: *Fac x2) -5/Factory (discovered 6 exits: *Fac x4 / *Upp x2) -5/Waste -5/Factory (discovered 5 exits: *Fac x3 / *Upp x2) -5/Upper Caves -5/Upper Caves (discovered 2 exits: *Fac / *Zhi) -5/Zhirov -4/Proximity Caves -4/Factory (discovered 5 exits: Res x3 / *Upp x2) -4/Upper Caves -4/Upper Caves -4/Warlord -3/Proximity Caves -3/Research (discovered 6 exits: *Res x3 / *Arm / Qua x2) -3/Armory -3/Lab -2/Research (discovered 3 exits: Acc x2 / *Tes) -2/Testing (discovered 3 exits: *Acc / [*Sec] / *Frg) -2/Protoforge History --------- Turn | Location | Event 19 | -11/Scrapyard | Discovered new exit (range 3) 41 | -11/Scrapyard | Entered Materials 203 | -10/Materials | Discovered new exit (range 15) 303 | -10/Materials | Build established: Mutant 491 | -10/Materials | Discovered new exit (range 8) 596 | -10/Materials | Discovered new exit (range 14) 758 | -10/Materials | Discovered new exit (range 2) 1203 | -10/Materials | Discovered new exit (range 7) 1213 | -10/Materials | Entered Subcaves 1233 | -10/Subcaves | Shifting Twisted Machinery released Battle Cannon 1364 | -10/Subcaves | Disturbed a concealed Subdweller 1397 | -10/Subcaves | Disturbed a concealed Subdweller 1567 | -10/Subcaves | Learned location of Storage (-9) 1576 | -10/Subcaves | Shifting Twisted Machinery released Scrap Shield 1715 | -10/Subcaves | Discovered new exit (range 5) 1788 | -10/Subcaves | Core integrity fell below 50% 2026 | -10/Subcaves | A swath of the cavern ceiling suddenly collapsed 2068 | -10/Subcaves | Build established: Scavenger-Mutant 2186 | -10/Subcaves | Discovered new exit (range 12) 2496 | -10/Subcaves | Shifting Twisted Machinery released Unknown Special Weapon 2611 | -10/Subcaves | Shifting Twisted Machinery released Battle Cannon 3000 | -10/Subcaves | Shifting Twisted Machinery released Sub. Machine Gun 3084 | -10/Subcaves | A swath of the cavern ceiling suddenly collapsed 3397 | -10/Subcaves | Visited 4L-MR0's lab 3414 | -10/Subcaves | Found Flightbrick 3625 | -10/Subcaves | Build established: Mutant 3741 | -10/Subcaves | Core integrity fell below 20% 3752 | -10/Subcaves | Discovered new exit (range 9) 3783 | -10/Subcaves | Entered Recycling 3883 | -9/Recycling | Scanned before Scraplab entrance 3896 | -9/Recycling | Discovered new exit (range 11) 3900 | -9/Recycling | Entered Scraplab 3911 | -9/Recycling | Entered Scraptown 3911 | -9/Scraptown | System corruption cleaned by C-Scrubber 3983 | -9/Scraptown | Visited TADAMA 3998 | -9/Scraptown | Heard Great Nut preacher, LISTEN AND RECITE! 4034 | -9/Scraptown | Scanned Subdweller tech in exchange for log data 4036 | -9/Scraptown | Learned Factory garrison access intel 4037 | -9/Scraptown | Learned location of Extension (-6) 4038 | -9/Scraptown | Learned Research emergency access door positions 4040 | -9/Scraptown | Learned location of Quarantine (-3) 4058 | -9/Scraptown | Build established: Scavenger-Mutant 4058 | -9/Scraptown | Discovered new exit (range 5) 4428 | -9/Scraptown | Visited UFD Registry 4428 | -9/Scraptown | Registered with UFD as "Wrenchlever" 4435 | -9/Scraptown | Visited Symbiants 4458 | -9/Scraptown | Visited CPS Storage 4471 | -9/Scraptown | Visited IN-MT5's Study 4527 | -9/Scraptown | Guru changed UFD alias to "Arctube" 4582 | -9/Scraptown | Visited Cave Peace 4665 | -9/Scraptown | Visited Supply Room 4681 | -9/Scraptown | Visited LU-1G1's Boring Crew 4723 | -9/Scraptown | Visited Science Guys 4790 | -9/Scraptown | Delivered Scrap Shield to a Scientist 5112 | -9/Scraptown | Build established: Hauler-Mutant 5160 | -9/Scraptown | Visited Botcube Research 5207 | -9/Scraptown | Visited Infowarlord's Domain 5222 | -9/Scraptown | Found Spectral Analyzer 5285 | -9/Scraptown | Visited Cartography Club 5370 | -9/Scraptown | Found Surveybot 17 Chip 5525 | -9/Scraptown | Visited Derelict Rescue Squad 5551 | -9/Scraptown | Found DRS Beacon 5611 | -9/Scraptown | Visited Curators Association 5856 | -9/Scraptown | Visited Cyclists 5880 | -9/Scraptown | Entered Cyclist Reading Room 7239 | -9/Scraptown | Discovered new exit (range 5) 7334 | -9/Scraptown | Visited Junk Repository 9104 | -9/Scraptown | Met Optimus 9104 | -9/Scraptown | Accepted into 0bPrime 9266 | -9/Scraptown | Entered Factory 9266 | -6/Factory | Evolved 8 slots: Propulsion x4, Utility x4 9267 | -6/Factory | Identified exit to Extension 9267 | -6/Factory | Attached Flightbrick, gained temporary slots: Utility x3 9268 | -6/Factory | Loaded intel: 4 garrison access locations 9481 | -6/Factory | Discovered new exit (range 16) 9486 | -6/Factory | Identified exit to Factory 9598 | -6/Factory | Loaded intel: 8 recycling unit locations 9781 | -6/Factory | Repaired Broken Biomechanical Wings 9912 | -6/Factory | Discovered exit to Factory (range 16) 9931 | -6/Factory | Spotted B-75 Beast 10024 | -6/Factory | Build established: Ninja 10081 | -6/Factory | Learned location of Protoforge (-2) 10091 | -6/Factory | Discovered new exit (range 16) 10289 | -6/Factory | Discovered exit to Factory (range 5) 10414 | -6/Factory | Cargo convoy interrupted 10646 | -6/Factory | Sucked down chute 10646 | -6/Factory | Entered Waste 10650 | -6/Waste | Spotted C-40 Crusher 10656 | -6/Waste | Spotted C-40 Crusher 10658 | -6/Waste | Spotted C-40 Crusher 10661 | -6/Waste | EMP discharged 10661 | -6/Waste | Spotted C-40 Crusher 10662 | -6/Waste | Spotted C-40 Crusher 10664 | -6/Waste | Discovered new exit (range 14) 10664 | -6/Waste | Spotted C-40 Crusher 10668 | -6/Waste | Identified exit to Factory 10669 | -6/Waste | Entered Factory 10743 | -6/Factory | Discovered exit to Extension (range 20) 10761 | -6/Factory | Discovered exit to Factory (range 17) 10773 | -6/Factory | Loaded intel: 8 recycling unit locations 10989 | -6/Factory | Allied Derelicts emerged from ambush trap array 10999 | -6/Factory | Discovered new exit (range 20) 11022 | -6/Factory | Discovered exit to Extension (range 15) 11213 | -6/Factory | Discovered exit to Factory (range 20) 11490 | -6/Factory | Entered Extension 11506 | -6/Extension | Rescued a captive Derelict 11509 | -6/Extension | Rescued a captive Derelict 11519 | -6/Extension | Rescued a captive Derelict 11565 | -6/Extension | Rescued a captive Derelict 11565 | -6/Extension | Rescued a captive Derelict 11575 | -6/Extension | Rescued a captive Derelict 11575 | -6/Extension | Rescued a captive Derelict 11583 | -6/Extension | Rescued a captive Derelict 11661 | -6/Extension | Rescued A7 11977 | -6/Extension | Spotted B-75 Beast 12008 | -6/Extension | Attached CPS modules to A7. 12062 | -6/Extension | Allies destroyed B-75 Beast 12064 | -6/Extension | Spotted B-75 Beast 12101 | -6/Extension | Allies destroyed B-75 Beast 12118 | -6/Extension | Discovered exit to Factory (range 16) 12131 | -6/Extension | Rescued a captive Derelict 12143 | -6/Extension | Rescued a captive Derelict 12145 | -6/Extension | Rescued a captive Derelict 12207 | -6/Extension | Extracted ID and sensor layout for unrecognized location from A7's data core 12213 | -6/Extension | Found Med. Regenerative Plating 12418 | -6/Extension | Discovered new exit (range 18) 12436 | -6/Extension | Discovered exit to Factory (range 20) 12466 | -6/Extension | Identified exit to Cetus 12749 | -6/Extension | Build established: Commander-Mutant 12815 | -6/Extension | Entered Cetus 12815 | -6/Cetus | Accompanied by 15 allies 12819 | -6/Cetus | Spotted Cetus Guard 12819 | -6/Cetus | Spotted Cetus Guard 12822 | -6/Cetus | Spotted Cetus Guard 12822 | -6/Cetus | Spotted Cetus Guard 12839 | -6/Cetus | Destroyed Cetus Guard 12841 | -6/Cetus | Destroyed Cetus Guard 12841 | -6/Cetus | Destroyed Cetus Guard 12846 | -6/Cetus | Destroyed Cetus Guard 12897 | -6/Cetus | Found a strange terminal 12900 | -6/Cetus | Discovered new exit (range 23) 12937 | -6/Cetus | Spotted Cetus Guard 12937 | -6/Cetus | Spotted Cetus Guard 12941 | -6/Cetus | Discovered exit to Factory (range 24) 12943 | -6/Cetus | Spotted Cetus Guard 12946 | -6/Cetus | Spotted Cetus Guard 12957 | -6/Cetus | Destroyed Cetus Guard 12957 | -6/Cetus | Destroyed Cetus Guard 12958 | -6/Cetus | Destroyed Cetus Guard 12963 | -6/Cetus | Destroyed Cetus Guard 12978 | -6/Cetus | Met Revision 17 12991 | -6/Cetus | Identified exit to Archives 13006 | -6/Cetus | Lost 3 allies 13026 | -6/Cetus | Entered Archives 13026 | -6/Archives | Accompanied by 10 allies 13038 | -6/Archives | Discovered exit to Factory (range 20) 13082 | -6/Archives | Discovered new exit (range 22) 13084 | -6/Archives | Discovered new exit (range 22) 13097 | -6/Archives | Lost 3 allies 13202 | -6/Archives | Identified exit to Hub_04(d) 13261 | -6/Archives | Build established: Commander-Ninja 13426 | -6/Archives | Entered Hub_04(d) 13426 | -6/Hub_04(d) | Accompanied by 7 allies 13441 | -6/Hub_04(d) | Discovered exit to Factory (range 17) 13445 | -6/Hub_04(d) | Discovered exit to Factory (range 20) 13478 | -6/Hub_04(d) | Spotted B-75 Beast 13491 | -6/Hub_04(d) | Network Hub disabled 13494 | -6/Hub_04(d) | Network Hub disabled 13514 | -6/Hub_04(d) | Network Hub disabled 13514 | -6/Hub_04(d) | Spotted Lightning 13515 | -6/Hub_04(d) | Spotted Lightning 13515 | -6/Hub_04(d) | Spotted Lightning 13527 | -6/Hub_04(d) | Network Hub disabled 13531 | -6/Hub_04(d) | Lost 3 allies 13539 | -6/Hub_04(d) | Spotted Lightning 13539 | -6/Hub_04(d) | Spotted Lightning 13540 | -6/Hub_04(d) | Spotted Lightning 13540 | -6/Hub_04(d) | Entered Factory 13540 | -5/Factory | Evolved 2 slots: Power x1, Utility x1 13767 | -5/Factory | Build established: Hacker-Scout 13783 | -5/Factory | Discovered new exit (range 13) 13848 | -5/Factory | Identified exit to Upper Caves 13910 | -5/Factory | Discovered new exit (range 13) 13925 | -5/Factory | Identified exit to Factory 13931 | -5/Factory | Discovered exit to Upper Caves (range 9) 14009 | -5/Factory | Discovered exit to Factory (range 20) 14188 | -5/Factory | Watched by a mysterious "MATRIX" hacker. 14266 | -5/Factory | Discovered exit to Factory (range 15) 14421 | -5/Factory | Loaded intel: 8 recycling unit locations 14480 | -5/Factory | Build established: Scavenger-Ninja 14765 | -5/Factory | Fabricated Field Propulsion Array (x1) 14770 | -5/Factory | Fabricated Lrn. Terrain Scanner (x2) 14810 | -5/Factory | Build established: Hacker-Ninja 15477 | -5/Factory | Discovered exit to Factory (range 23) 15666 | -5/Factory | Central database locked down 15677 | -5/Factory | Sucked down chute 15677 | -5/Factory | Entered Waste 15677 | -5/Waste | Spotted C-40 Crusher 15683 | -5/Waste | Spotted C-40 Crusher 15690 | -5/Waste | Spotted C-40 Crusher 15694 | -5/Waste | Discovered new exit (range 20) 15694 | -5/Waste | Spotted C-40 Crusher 15696 | -5/Waste | Spotted C-40 Crusher 15697 | -5/Waste | Spotted C-40 Crusher 15702 | -5/Waste | Identified exit to Factory 15702 | -5/Waste | Entered Factory 15737 | -5/Factory | Loaded intel: 8 recycling unit locations 15749 | -5/Factory | Discovered exit to Upper Caves (range 22) 15819 | -5/Factory | Discovered exit to Factory (range 24) 15828 | -5/Factory | Spotted B-75 Beast 15832 | -5/Factory | Build established: Ninja 16309 | -5/Factory | Discovered exit to Upper Caves (range 24) 16347 | -5/Factory | Discovered exit to Factory (range 23) 16367 | -5/Factory | Discovered exit to Factory (range 23) 16644 | -5/Factory | Entered Upper Caves 16646 | -5/Upper Caves | UFD Scientist delivered a prototype 16647 | -5/Upper Caves | Found Prototype Protection 16647 | -5/Upper Caves | Identified Enh. Scrap Shield 16731 | -5/Upper Caves | Identified exit to Upper Caves 16772 | -5/Upper Caves | Spotted B-75 Beast 16808 | -5/Upper Caves | Learned location of 1 exit from Proximity Caves 16808 | -5/Upper Caves | Learned Extension emergency access door positions 16808 | -5/Upper Caves | Learned Armory stockpile data 16808 | -5/Upper Caves | Learned Extension security intel 16812 | -5/Upper Caves | Attracted the attention of an 0b10 base 17029 | -5/Upper Caves | Entered another Upper Caves area 17050 | -5/Upper Caves | Discovered exit to Factory (range 19) 17084 | -5/Upper Caves | Learned location of Warlord (-4) 17141 | -5/Upper Caves | Spotted B-75 Beast 17253 | -5/Upper Caves | Discovered new exit (range 23) 17359 | -5/Upper Caves | Identified exit to Zhirov 17360 | -5/Upper Caves | Entered Zhirov 17360 | -5/Zhirov | Discovered new exit (range 3) 17362 | -5/Zhirov | Identified exit to Proximity Caves 17368 | -5/Zhirov | Met Zhirov 17379 | -5/Zhirov | Learned location of Testing (-2) 17379 | -5/Zhirov | Learned location of Command (-1) 17382 | -5/Zhirov | Zhirov requested help retrieving the SGEMP Prototype 17397 | -5/Zhirov | Found Alien Artifact 17397 | -5/Zhirov | Identified Integrated Reactor 17397 | -5/Zhirov | Installed Integrated Reactor, increased core energy generation (+10) 17455 | -5/Zhirov | Found Alien Artifact 17490 | -5/Zhirov | Entered Proximity Caves 17493 | -4/Proximity Caves | Spotter reported a threat 17653 | -4/Proximity Caves | Learned Research stockpile data 17686 | -4/Proximity Caves | Acquired the password to a Derelict Tinkerer's latest research 17735 | -4/Proximity Caves | Attracted the attention of an 0b10 base 17735 | -4/Proximity Caves | Learned location of 2 exits from Upper Caves 17735 | -4/Proximity Caves | Learned Research security intel 17738 | -4/Proximity Caves | Entered Factory 17738 | -4/Factory | Evolved 2 slots: Utility x2 17749 | -4/Factory | Loaded intel: 8 recycling unit locations 17762 | -4/Factory | Build established: Scavenger-Ninja 17969 | -4/Factory | Discovered new exit (range 18) 18116 | -4/Factory | Found Unknown Device 18116 | -4/Factory | Identified Launcher Loader 18142 | -4/Factory | Build established: Hacker-Ninja 18177 | -4/Factory | Discovered new exit (range 10) 18182 | -4/Factory | Identified exit to Upper Caves 18212 | -4/Factory | Discovered new exit (range 17) 18511 | -4/Factory | Targeted by mysterious "MATRIX" hacker. 18542 | -4/Factory | Spotted B-86 Titan 18554 | -4/Factory | Discovered new exit (range 24) 18589 | -4/Factory | Fabricated O-32 Director? 18620 | -4/Factory | Discovered new exit (range 23) 19029 | -4/Factory | Fabricated Exp. Propulsion Shielding (x1) 19117 | -4/Factory | Unchained authorized (CL-0N3) 19128 | -4/Factory | Entered Upper Caves 19129 | -4/Upper Caves | Identified exit to Upper Caves 19130 | -4/Upper Caves | Encountered a Warlord checkpoint 19195 | -4/Upper Caves | Unchained authorized (CL-0N3) 19259 | -4/Upper Caves | Learned Research emergency access door positions 19280 | -4/Upper Caves | Learned Research trap positions 19282 | -4/Upper Caves | Found DCF Scrap (13 items) 19319 | -4/Upper Caves | Found Alien Artifact 19319 | -4/Upper Caves | Identified Dimensional Node Initializer 19319 | -4/Upper Caves | Initialized slip node 19329 | -4/Upper Caves | Z9-TP8(k) reconstituted as Combat Programmer 19329 | -4/Upper Caves | Spotted Combat Programmer 19343 | -4/Upper Caves | Entered another Upper Caves area 19344 | -4/Upper Caves | Identified exit to Warlord 19345 | -4/Upper Caves | Spotted B-86 Titan 19402 | -4/Upper Caves | Entered Warlord 19417 | -4/Warlord | System corruption cleaned by Quarantine Array 19479 | -4/Warlord | Learned Factory recycling unit intel 19479 | -4/Warlord | Learned Armory terminal intel 19479 | -4/Warlord | Learned 4 Research zone layouts 19479 | -4/Warlord | Learned Testing emergency access door positions 19479 | -4/Warlord | Learned Quarantine emergency access door positions 19558 | -4/Warlord | Warlord's base attacked by MAIN.C 19560 | -4/Warlord | Found Prototype Reactor 19560 | -4/Warlord | Identified Vortex Chain Reactor 19567 | -4/Warlord | Found Prototype Hackware 19571 | -4/Warlord | Rebuked by Warlord 19592 | -4/Warlord | Found Prototype Piercing Weapon 19592 | -4/Warlord | Identified Vortex Lance 19594 | -4/Warlord | Found Vortex Lance 19613 | -4/Warlord | Found Prototype Device 19613 | -4/Warlord | Identified Minesniffer Drone Bay 19700 | -4/Warlord | Spotted B-90 Cyclops 19908 | -4/Warlord | Warlord forces counterattacked 19994 | -4/Warlord | Found Prototype Processor 19994 | -4/Warlord | Identified Exp. Core Analyzer 20003 | -4/Warlord | Lost 17 allies 20035 | -4/Warlord | Spotted Executioner 20058 | -4/Warlord | Spotted Executioner 20058 | -4/Warlord | Spotted B-90 Cyclops 20080 | -4/Warlord | Spotted Striker 20099 | -4/Warlord | Opened side exit 20113 | -4/Warlord | Lost 16 allies 20233 | -4/Warlord | Warlord base infiltrated, sounded retreat 20234 | -4/Warlord | Enhanced Grunt warped into view 20234 | -4/Warlord | Enhanced Grunt warped into view 20234 | -4/Warlord | Enhanced Grunt warped into view 20234 | -4/Warlord | Enhanced Demolisher warped into view 20234 | -4/Warlord | Enhanced Demolisher warped into view 20234 | -4/Warlord | Enhanced Demolisher warped into view 20282 | -4/Warlord | Build established: Hacker-Sprinter 20345 | -4/Warlord | Lost 3 allies 20386 | -4/Warlord | Spotted Executioner 20400 | -4/Warlord | Discovered new exit (range 14) 20403 | -4/Warlord | Identified exit to Proximity Caves 20405 | -4/Warlord | Entered Proximity Caves 20421 | -3/Proximity Caves | Lost 8 allies 20449 | -3/Proximity Caves | Unchained authorized (CL-0N3) 20476 | -3/Proximity Caves | Spotted B-86 Titan 20561 | -3/Proximity Caves | Discovered new exit (range 3) 20561 | -3/Proximity Caves | Identified exit to Research 20561 | -3/Proximity Caves | Entered Research 20561 | -3/Research | Evolved 2 slots: Utility x2 20562 | -3/Research | Identified exit to Research 20563 | -3/Research | Loaded intel: 53 trap records 20687 | -3/Research | Identified System Mapper 20688 | -3/Research | Identified exit to Armory 20688 | -3/Research | Identified exit to Quarantine 20746 | -3/Research | Loaded intel: 5 recycling unit locations 20761 | -3/Research | Revision forces began assault on 0b10 21024 | -3/Research | Lost 3 allies 21044 | -3/Research | Entered Armory 21046 | -3/Armory | Loaded intel: 15 terminal locations 21263 | -3/Armory | Unchained authorized (DW-4LL) 21363 | -3/Armory | Found Prototype Launcher 21363 | -3/Armory | Identified Com. Tesla Bomb Launcher 21410 | -3/Armory | DW-4LL burst out of a wall 21426 | -3/Armory | Identified Transdimensional Reconstructor 21426 | -3/Armory | Warped through subspace to slip node 21426 | -3/Armory | Discovered new exit (range 1) 21426 | -3/Armory | Identified exit to Lab 21446 | -3/Armory | Entered Lab 21446 | -3/Lab | Discovered exit to Research (range 9) 21449 | -3/Lab | Hidden lab's door opened automatically 21449 | -3/Lab | Sensor layout match revealed 21450 | -3/Lab | Gained access to the hidden lab's interior 21495 | -3/Lab | Found Prototype Special Weapon 21497 | -3/Lab | Identified Gui. Remote Datajack 21501 | -3/Lab | Unable to decrypt terminal 21554 | -3/Lab | Found Alien Artifact 21554 | -3/Lab | Identified Integrated Dissipator 21554 | -3/Lab | Installed Integrated Dissipator, increased core heat dissipation (+20) 21605 | -3/Lab | Found Prototype Energy Cannon 21605 | -3/Lab | Identified Warp Cannon 21642 | -3/Lab | Found Alien Artifact 21642 | -3/Lab | Identified Core Regenerator 21642 | -3/Lab | Used Core Regenerator, restored core integrity (+131) 21804 | -3/Lab | Found Prototype Hackware 21815 | -3/Lab | Entered Research 21815 | -2/Research | Evolved 2 slots: Propulsion x1, Utility x1 21876 | -2/Research | Unchained authorized (DW-4LL) 21894 | -2/Research | Spotted B-90 Cyclops 21896 | -2/Research | Garrison activated, responded to threat 21935 | -2/Research | Identified Quantum Router 21953 | -2/Research | Lost 6 parts (1p1n4u) 21969 | -2/Research | Identified exit to Access 22005 | -2/Research | Spotted B-90 Cyclops 22014 | -2/Research | DW-4LL burst out of a wall 22031 | -2/Research | Discovered new exit (range 4) 22031 | -2/Research | Identified exit to Testing 22035 | -2/Research | Entered Testing 22130 | -2/Testing | Found Prototype Device 22130 | -2/Testing | Identified AEGIS Remote Shield 22141 | -2/Testing | Found Prototype Launcher 22141 | -2/Testing | Identified Tactical Quantum Warhead 22171 | -2/Testing | Found Prototype Ballistic Cannon 22171 | -2/Testing | Identified Omega Cannon 22206 | -2/Testing | Spotted Striker 22207 | -2/Testing | Spotted Striker 22215 | -2/Testing | Found Prototype Device 22215 | -2/Testing | Identified Adv. EM Shield 22226 | -2/Testing | Rewired PL-QU4MWGKNXX 22266 | -2/Testing | Destroyed PL-QU4MWGKNXX 22290 | -2/Testing | Discovered exit to Access (range 18) 22314 | -2/Testing | Unchained authorized (DW-4LL) 22440 | -2/Testing | Build established: Hacker-Ninja 22491 | -2/Testing | DW-4LL burst out of a wall 22516 | -2/Testing | Spotted Fortress 22527 | -2/Testing | Discovered new exit (range 5) 22527 | -2/Testing | Discovered new exit (range 6) 22528 | -2/Testing | Identified exit to Protoforge 22544 | -2/Testing | Entered Protoforge 22610 | -2/Protoforge | Spotted Hotshot 22610 | -2/Protoforge | Spotted Hotshot 22619 | -2/Protoforge | Spotted Hotshot 22627 | -2/Protoforge | Spotted Hotshot 22629 | -2/Protoforge | Spotted Hotshot 22631 | -2/Protoforge | Superfortress began startup sequence 22717 | -2/Protoforge | Spotted AP7-3 22717 | -2/Protoforge | Spotted AP7-3 22721 | -2/Protoforge | Spotted SKR-2 22721 | -2/Protoforge | Spotted SKR-2 22721 | -2/Protoforge | Spotted SKR-2 22722 | -2/Protoforge | Spotted EXE-6 22722 | -2/Protoforge | Spotted EXE-6 22731 | -2/Protoforge | UFD initiated attack on Protoforge (Readiness: Maximal) 22731 | -2/Protoforge | Loaded intel: 3 recycling unit locations 22736 | -2/Protoforge | Spotted EXE-6 22736 | -2/Protoforge | Spotted EXE-6 22767 | -2/Protoforge | Optimus greeted in Protoforge 22780 | -2/Protoforge | Found Prototype Device 22780 | -2/Protoforge | Identified Exp. ECM Suite 22784 | -2/Protoforge | Found Prototype Processor 22784 | -2/Protoforge | Identified Exp. Target Analyzer 22801 | -2/Protoforge | Lost 7 allies 22809 | -2/Protoforge | Forge Plexus network access discovered 22810 | -2/Protoforge | Found Exp. Armor Integrity Analyzer 22851 | -2/Protoforge | Found UFD Drillbomb 22854 | -2/Protoforge | Spotted Decapitator 22855 | -2/Protoforge | Spotted Decapitator 22861 | -2/Protoforge | Found Exp. Core Analyzer 22866 | -2/Protoforge | Found Exp. Melee Analysis Suite 22886 | -2/Protoforge | Installed UFD Drillbomb at designated target 22886 | -2/Protoforge | UFD reported confirmed Drillbomb installation 22894 | -2/Protoforge | Met 7R-MNS 22899 | -2/Protoforge | Found UFD Drillbomb 22914 | -2/Protoforge | Spotted Hotshot 22915 | -2/Protoforge | Spotted Hotshot 22915 | -2/Protoforge | Spotted Hotshot 22938 | -2/Protoforge | UFD reported confirmed Drillbomb installation 22939 | -2/Protoforge | Spotted Executioner 22942 | -2/Protoforge | Installed UFD Drillbomb at designated target 22942 | -2/Protoforge | UFD reported confirmed Drillbomb installation 22965 | -2/Protoforge | Found UFD Drillbomb 22978 | -2/Protoforge | Spotted Executioner 22990 | -2/Protoforge | Installed UFD Drillbomb at designated target 22990 | -2/Protoforge | UFD reported confirmed Drillbomb installation 22992 | -2/Protoforge | Found UFD Drillbomb 23002 | -2/Protoforge | Spotted Overlord 23003 | -2/Protoforge | Destroyed Hotshot 23008 | -2/Protoforge | Destroyed Hotshot 23019 | -2/Protoforge | Destroyed Overlord 23020 | -2/Protoforge | Spotted Striker 23022 | -2/Protoforge | Spotted Striker 23040 | -2/Protoforge | Build established: Scavenger-Sprinter 23050 | -2/Protoforge | Destroyed Striker 23054 | -2/Protoforge | Destroyed Striker 23090 | -2/Protoforge | Spotted B-90 Cyclops 23098 | -2/Protoforge | Spotted Hotshot 23101 | -2/Protoforge | Spotted Hotshot 23103 | -2/Protoforge | Spotted Hotshot 23127 | -2/Protoforge | Installed UFD Drillbomb at designated target 23127 | -2/Protoforge | UFD reported confirmed Drillbomb installation 23133 | -2/Protoforge | Spotted Striker 23155 | -2/Protoforge | Lost 4 parts (1p2n1u) 23182 | -2/Protoforge | Found UFD Drillbomb 23188 | -2/Protoforge | Spotted Executioner 23192 | -2/Protoforge | Spotted Striker 23193 | -2/Protoforge | Spotted Executioner 23196 | -2/Protoforge | Found Prototype Device 23196 | -2/Protoforge | Identified Adv. Kinecellerator 23201 | -2/Protoforge | Core integrity fell below 50% 23211 | -2/Protoforge | Spotted Striker 23217 | -2/Protoforge | Destroyed Striker 23253 | -2/Protoforge | Lost 8 allies 23256 | -2/Protoforge | Spotted Striker 23267 | -2/Protoforge | Spotted Executioner 23269 | -2/Protoforge | Destroyed Striker 23270 | -2/Protoforge | Destroyed Executioner 23307 | -2/Protoforge | Installed UFD Drillbomb at designated target 23307 | -2/Protoforge | UFD reported confirmed Drillbomb installation 23361 | -2/Protoforge | Spotted Striker 23362 | -2/Protoforge | Lost 9 parts (6n2u1w) 23362 | -2/Protoforge | Spotted Striker 23380 | -2/Protoforge | Found UFD Drillbomb 23416 | -2/Protoforge | Found 0bPrime Scrap Suit 23444 | -2/Protoforge | Lost 5 allies 23456 | -2/Protoforge | Installed UFD Drillbomb at designated target 23456 | -2/Protoforge | UFD reported confirmed Drillbomb installation 23489 | -2/Protoforge | Found UFD Drillbomb 23491 | -2/Protoforge | Spotted Executioner 23491 | -2/Protoforge | Spotted Executioner 23491 | -2/Protoforge | Spotted Executioner 23502 | -2/Protoforge | Spotted Striker 23527 | -2/Protoforge | Spotted Executioner 23533 | -2/Protoforge | Core integrity fell below 20% 23538 | -2/Protoforge | System corruption reached 10% 23542 | -2/Protoforge | Spotted Executioner 23543 | -2/Protoforge | Destroyed by P-80 Master with Gamma Rifle Last Messages --------------- 23531_ Repair Station disabled. 23531_ Backup Propulsion III tumbles out of repair station. 23531_ Slug penetrates Wall. 23532_ Penetrated by Slug. 23532_ Slug penetrates Repair Station. 23532_ Backup Propulsion III tumbles out of repair station. 23532_ Backup Laser III tumbles out of repair station. 23532_ Backup Plating III tumbles out of repair station. 23532_ Backup Propulsion III tumbles out of repair station. 23533_ N-04 Retriever collects Corrupted Ovr. Medium Treads. 23534_ Xenon Bombardment Thruster destroyed. 23538_ Backup Power III destroyed. 23539_ N-04 Retriever collects Adv. Heat Sink. 23540_ Penetrated by Slug. 23540_ P-80 Master resets Executioner, system corruption cleaned. 23541_ Penetrated by Slug. 23541_ P-80 Master resets P-80 Master, system corruption cleaned. 23542_ Penetrated by Slug. 23542_ Slug penetrates Wall. 23542_ Backup Propulsion III destroyed. Map ----- +----------------------------------------------------+ | ??## ###+#### ##???###?????????????# " | | ??## #? ###### ##????????????# | | ??## %! +? ####"""##????????????# | | ??## #?"" # ##????????????# " | | ??## ########?""" " " " ##????????????# " | | ??### ######### """ " #######???????# | | ??### ###???### " " " "" ### ####?##?# | | ???## ###### ##? " """ # = # ### " | | #??## ####""########"" !!![ =="!### % | | #??## % [=#*"""""*!!%"""" ["*!" "%"# "## | | #??#"*% !*==% %%=% %%E E% %%% %%%%%% %%% % " | | #####! [[%!![[==""*; %% %%%% % %%%%%% % " | | ###*##!=#"#!#""=== *!=%%% %% %%%%%%%%%%%%%%%" " | | [=]!!%!=# ! ### !!%[%%%%;;"" % """ %%"%%%#% | | !=[]*!%!#%& " ###=!!!;% %% = % =![!*[##!# | | ![[!%[%=!=[ # " =%[;%% ; [# %=* !* # ## | | !!!=|/%"[!! # !=%; % ; "!=##### ##?# | | %% *=%[%/=%!! # # ! !;; # #####??# #??# | | !!*%%#!= " !!%%;;%% #####??????# #??# "" | | =!*[# "# " =%%;;% ;##????????# # #?# "" | | % # # ## %! #; ; #????????# ## ## "" | | "="#""#### ## # " ;; ; #?????????##?### | | %## #############T %#;% ;# #?????????????# | | ?### ???##########" #;!&%;###?????????????# | | ?###????????????##"" ##% ; #??????????????# | | ?##?????????????##" #;@ # #??????????????# | | ?###???????????### ## %;#########???????# | | ?###???????????#####+### #########???????# " | | ?##???????????## % ##???????# " " | | ??##???????????## g% %b = ##???????# | | " ##???????????##!%= ! ##???????# | | " ##???????????## ##;; gp ;### ##???????# | | " ##???????????## ###;;#m;;;### ##???????# " | | " ##???????????## ## % ## ##???????# | | ?##???????????## ## % l ## ##???????# | | ??##???????????## ## p ## ##???????# | | ####??????????### ## x xEE## ##???????# "" | | ####??????????### ## + #######??# " | | ##????????????## # n s ;##/########??# " | | ##????????????## [ !# " ##??# | | ##????????????## %! %+ " [""" ##??# | | ##????????????## !% ########### [!"R" ##??# | | ##?????????##### ! ########### ==%=" ##??# | | ##?????????##"####+"####"#????## [=/[ ##??# | | ##?????????## % ##????## =*! ##??# " | | ##?????????## ##????#" ! ##??# | | ##?????????#" ##???# # ##??# | | ##?????????## ##???##############??# " | | ##?????????## ##????#############??# " | | ##?????????## ##???????????????????# "" | +----------------------------------------------------+ Best States ------------- Heat Dissipation 107 Coolant Potential 120 Energy Generation 56 Energy Capacity 740 Matter Stores 300 Matter Capacity 300 Sight Range 24 Robot Scan Range 16 Terrain Scan Range 24 Terrain Scan Density 1210 ECM Strength 2 Jamming Range 16 Cloak Strength 4 Power Amplification 30 Additional Mass Support 16 Armor Coverage 225 Propulsion Shielding 90 Melee Speed Boost 50 Phase Shifting 15 Evasion (%) 80 Melee Accuracy 12 Target Analysis 10 Core Analysis 12 Armor Integrity Analysis 50 Recoil Reduction 2 Offensive Hacking 48 Defensive Hacking 25 Authchip Count 1 Item Schematics ----------------- Lrn. Terrain Scanner | -5/Factory | Hacked Assault Drone Bay | -5/Zhirov | Free Exp. Heat Sink | -5/Zhirov | Free Exp. Optical Array | -5/Zhirov | Free Imp. Arc Thrower | -5/Zhirov | Free Exp. Propulsion Shielding | -4/Factory | Hacked Robot Schematics ------------------ None Fabricated ------------ Field Propulsion Array | x1 | -5/Factory | Preloaded Lrn. Terrain Scanner | x2 | -5/Factory | Authchip O-32 Director | x1 | -4/Factory | Preloaded Exp. Propulsion Shielding | x1 | -4/Factory Repaired ---------- Biomechanical Wings | 99% | -6/Factory | Broken Studied --------- Hyb. Fission Core | -5/Factory | Hacked Alien Tech Used ----------------- Integrated Reactor Dimensional Node Initializer Transdimensional Reconstructor Integrated Dissipator Core Regenerator Achievements -------------- 404 Ambidextrous Fine I'll Do It Myself Inventory(Loot) Low-level Research We Are One Challenges ------------ None Game ------ Seed IntegrityFireMagmablaster Manual? 0 Play Time 09:26:51 Cumulative 500.8 hours Start 2026.02.23 @ 21:17:02 End 2026.02.25 @ 09:36:23 Sessions 3 Manual Loads 0 Difficulty Rogue Special Mode None Game No. 232 Rogue 232 Adventurer 0 Explorer 0 Win Type - Total 15 Types 8/0/5/2/0/0/0/0/0/0 Lore% 81 Gallery% 74 Achievement% 58 Wizard Run 0 Options --------- Layout 0 ASCII 0 Keyboard 0 Movement Numpad Keybinds 0 Fullscreen 1 Font 18/SmallcapsGlow Map View 76x50 Zoom Use 0% Tactical HUD 1 Map Filters NONE Filters NONE Steam 1 RUN: 7ac01031-5546-4c0b-b086-6b0687c719a1